Cogmind - Beta 15 @@@ ROGUE MODE // 2025.08.22 @ 01:57:35 Player: Cracklepappy Result: Destroyed by Immortal with Experimental Jetlance Performance ------------- Evolutions (8) 4000 Regions Visited (37) 7400 Robots Destroyed (601) 3005 Value Destroyed (37282) 37282 Prototype IDs (122) 2440 Alien Tech Used (0) 0 Bonus (15907) 15907 TOTAL SCORE: 70034 Bonus ------- High Alert Combat Kills 9648 Follower Combat Kills 2534 Entered Garrisons 1600 Entered DSFs 1000 Aligned with FarCom 300 Acquired ECA 300 Met Warlord at Base 500 MAIN.C Attacked Warlord 500 Warlord Defense Kills 560 Friendly Fire -1035 Cogmind --------- Core Integrity 0/1450 Matter 26/300 Energy 247/950 System Corruption 40% Temperature Hot (272) Movement Core (1050) Ox20 Location -2/Protoforge Parts ------- > --- POWER (2) -------- Micro Antimatter Reactor > --- PROPULSION (6) --- (None) > --- UTILITY (10) ----- Advanced Heat Sink Concept Antigrav Storage Unit Concept Chromion Battery Experimental Targeting Computer Experimental Target Analyzer Experimental Core Analyzer Concept RG22 Armor Graphene Brace > --- WEAPON (5) ------- Concept Plasma Driver > --- INVENTORY (25) --- Wheel Wheel Advanced Cryofiber Web Concept Chromion Battery (160) Concept NT7 Matterbank (0) Concept NT7 Matterbank (0) Concept Hypertargeting System Concept Networked Targeting System Experimental Core Analyzer Experimental Remote Shield Concept Matter Streamer Concept Matter Streamer Crosscalibrator Dimensional Node Initializer Concept XC Strikerail Concept Miniperforator Concept Miniperforator Concept Helical Railcannon Concept Helical Railcannon Concept Heavy Railcannon Concept Tiamat Rocket Array Experimental Terror Saw Peak State ------------ > --- POWER ------------ Micro Antimatter Reactor Light Quantum Reactor > --- PROPULSION ------- Wheel Wheel High-density Centrium Wheel > --- UTILITY ---------- Concept Antigrav Storage Unit Experimental Targeting Computer Experimental Target Analyzer Experimental Core Analyzer Quantum Capacitor Concept RG22 Armor Concept RG22 Armor Graphene Brace Crosscalibrator > --- WEAPON ----------- Potential Cannon Concept XC Strikerail Concept Heavy Railcannon > --- INVENTORY -------- Advanced Cryofiber Web Advanced Heat Sink Concept Chromion Battery Concept Chromion Battery Concept NT7 Matterbank Concept NT7 Matterbank Concept Hypertargeting System Concept Networked Targeting System Experimental Core Analyzer Experimental Kinecellerator Experimental Remote Shield Concept Matter Streamer Concept Matter Streamer Dimensional Node Initializer Concept Plasma Driver Concept Plasma Driver Concept Plasma Driver Concept Miniperforator Concept Miniperforator Concept Helical Railcannon Concept Helical Railcannon Concept Heavy Railcannon Concept Tiamat Rocket Array Experimental Terror Saw [Rating: 209] Favorites ----------- Power Quantum Reactor Engine Ion Engine Power Core Reinforced Fission Core Reactor Quantum Reactor Propulsion Armored Wheel Wheel Armored Wheel Utility Huge Storage Unit Device Graphene Brace Storage Huge Storage Unit Processor Core Analyzer Hackware Ghost Barrier Protection Improved Powered Armor Weapon Enhanced Autogun Energy Gun Improved EM Shotgun Energy Cannon Heavy Ion Cannon Ballistic Gun Enhanced Autogun Ballistic Cannon Heavy Linear Accelerator Launcher Rocket Launcher Special Weapon Field Lobotomy Kit Impact Weapon Flail Slashing Weapon Makeshift Sword Piercing Weapon Heavy Pick Special Melee Weapon Datajack Build | -11 -10 -10 -10 -9 -8 -8 -8 -8 -7 -7 -7 -7 -7 -7 -7 -7 -6 -6 -6 -6 -6 -6 -5 -5 -5 -5 -5 -5 -4 -4 -4 -4 -3 -3 -2 -2 -2 ------- Run | Yrd Mat Min Exi Min Mat Gar Mat Gar Fac Was Fac Gar Fac Gar Fac Gar Fac Was Fac Gar Fac Gar Fac Was Fac Upp Upp War Pro Fac DSF Gar Res DSF Res Tes Frg Slots Evolved 16 | . . . . . 4 . . . 2 . . . . . . . 2 . . . . . 2 . . . . . . 2 . . 2 . 2 . . Power 1 | . . . . . . . . . . . . . . . . . . . . . . . . . . . . . . 1 . . . . . . . Propulsion 4 | . . . . . 1 . . . 1 . . . . . . . . . . . . . . . . . . . . 1 . . 1 . . . . Utility 8 | . . . . . 1 . . . . . . . . . . . 2 . . . . . 2 . . . . . . . . . 1 . 2 . . Weapon 3 | . . . . . 2 . . . 1 . . . . . . . . . . . . . . . . . . . . . . . . . . . . Parts Attached 476 | 9 10 1 2 9 27 9 40 18 10 4 1 17 . 17 3 18 11 2 7 18 4 25 2 4 13 3 2 25 1 2 10 17 2 9 53 17 54 Power 59 | 1 2 . . 1 1 2 4 2 1 1 . 4 . 3 . 3 1 1 1 4 . 3 . . 2 . 1 2 . . 1 3 . . 9 1 5 Engine 22 | 1 2 . . 1 1 2 3 1 1 . . 3 . 3 . . . . . 2 . . . . 1 . . . . . . . . . 1 . . Core 12 | . . . . . . . 1 1 . . . . . . . 3 1 . 1 2 . . . . 1 . 1 1 . . . . . . . . . Reactor 25 | . . . . . . . . . . 1 . 1 . . . . . 1 . . . 3 . . . . . 1 . . 1 3 . . 8 1 5 Propulsion 103 | 4 2 1 . 5 3 2 16 3 3 1 . 6 . 3 2 4 2 . . 2 3 3 1 1 2 1 . 6 . 1 1 . . . 14 2 9 Treads . | . . . . . . . . . . . . . . . . . . . . . . . . . . . . . . . . . . . . . . Leg . | . . . . . . . . . . . . . . . . . . . . . . . . . . . . . . . . . . . . . . Wheel 103 | 4 2 1 . 5 3 2 16 3 3 1 . 6 . 3 2 4 2 . . 2 3 3 1 1 2 1 . 6 . 1 1 . . . 14 2 9 Hover . | . . . . . . . . . . . . . . . . . . . . . . . . . . . . . . . . . . . . . . Flight . | . . . . . . . . . . . . . . . . . . . . . . . . . . . . . . . . . . . . . . Utility 129 | 2 2 . . 1 5 2 9 4 1 . 1 2 . 1 1 4 4 . 3 6 . 9 . 1 7 1 . 9 1 . 5 4 . 3 17 5 19 Device 78 | 1 . . . 1 5 1 7 3 1 . 1 1 . . . 4 3 . 3 4 . 7 . 1 3 1 . 5 . . 4 1 . 2 9 2 8 Storage 14 | 1 2 . . . . . . . . . . . . 1 . . . . . . . . . . . . . 2 . . . . . 1 3 1 3 Processor 17 | . . . . . . . 1 1 . . . 1 . . 1 . 1 . . 1 . 1 . . 1 . . 1 1 . . . . . 5 2 . Hackware 3 | . . . . . . . 1 . . . . . . . . . . . . . . . . . 1 . . . . . . . . . . . 1 Protection 17 | . . . . . . 1 . . . . . . . . . . . . . 1 . 1 . . 2 . . 1 . . 1 3 . . . . 7 Artifact . | . . . . . . . . . . . . . . . . . . . . . . . . . . . . . . . . . . . . . . Weapon 185 | 2 4 . 2 2 18 3 11 9 5 2 . 5 . 10 . 7 4 1 3 6 1 10 1 2 2 1 1 8 . 1 3 10 2 6 13 9 21 Energy Gun 27 | . 2 . . 1 . . . . 4 2 . 1 . . . . 4 1 . . . 1 . 2 . 1 . 2 . . 1 . . 1 1 . 3 Energy Cannon 27 | . . . . . 2 . 3 1 . . . . . . . . . . . 3 . 1 . . . . . 2 . . 1 4 1 . 1 3 5 Ballistic Gun 83 | 2 . . . . 16 1 3 7 1 . . 3 . 9 . 6 . . 1 . . 4 . . 2 . . 4 . . 1 6 1 1 7 5 3 Ballistic Cannon 32 | . . . . . . . 5 . . . . . . 1 . 1 . . 2 3 1 3 1 . . . . . . 1 . . . 4 2 1 7 Launcher 7 | . . . . 1 . 1 . . . . . . . . . . . . . . . . . . . . 1 . . . . . . . 1 . 3 Special Weapon 2 | . 1 . 1 . . . . . . . . . . . . . . . . . . . . . . . . . . . . . . . . . . Impact Weapon 1 | . 1 . . . . . . . . . . . . . . . . . . . . . . . . . . . . . . . . . . . . Slashing Weapon 1 | . . . . . . 1 . . . . . . . . . . . . . . . . . . . . . . . . . . . . . . . Piercing Weapon 3 | . . . . . . . . 1 . . . . . . . . . . . . . 1 . . . . . . . . . . . . 1 . . Special Melee Weapon 2 | . . . 1 . . . . . . . . 1 . . . . . . . . . . . . . . . . . . . . . . . . . Unidentified Prototypes 41 | . . . . . 1 . 2 . . . . . . . . . . . . . . 1 . . 1 . . 10 . . . 1 . . 10 3 12 Corrupted Parts 2 | . . . . 1 . . . . . . . . . . . . . . . . . . . . . . . . 1 . . . . . . . . System Corruption 8 | . . . . 1 . . . . . . . . . . . . . . . . . . . . . . . . 7 . . . . . . . . Parts Lost 122 | . 1 1 . 5 2 6 4 4 . . . 5 . 1 1 15 . . . 5 . 4 . . 2 . . 2 . . 5 8 . 2 1 . 48 Power 12 | . . . . 1 . 1 . . . . . 1 . . . 2 . . . 1 . . . . . . . . . . . 1 . 1 . . 4 Propulsion 47 | . 1 1 . 2 . 3 2 2 . . . 3 . . 1 5 . . . 3 . 3 . . 1 . . 1 . . 3 2 . 1 . . 13 Utility 24 | . . . . . 2 1 1 . . . . . . . . 1 . . . 1 . 1 . . . . . . . . 1 1 . . 1 . 14 Weapon 39 | . . . . 2 . 1 1 2 . . . 1 . 1 . 7 . . . . . . . . 1 . . 1 . . 1 4 . . . . 17 Highest Loss Streak 13 | . 1 1 . 5 1 3 3 2 . . . 3 . 1 1 13 . . . 3 . 2 . . 1 . . 1 . . 5 3 . 2 1 . 12 To Critical Strikes 1 | . . . . . . . . . . . . . . 1 . . . . . . . . . . . . . . . . . . . . . . . Average Backups 25 | 3 19 23 19 21 22 23 23 23 23 23 24 23 24 28 29 28 26 25 28 27 28 29 29 29 29 29 30 29 29 28 28 27 27 18 19 23 21 Power 1 | . 2 1 2 1 1 . . . . . 1 . 1 1 1 1 1 1 1 . 1 1 1 1 1 1 1 . 1 1 1 1 1 . 2 2 . Propulsion 1 | 1 2 1 1 1 2 . 1 1 2 2 1 1 2 2 2 . 1 2 2 . . 1 2 2 2 2 3 2 2 1 . . . . 4 . . Utility 10 | . 5 7 3 7 6 7 6 10 11 10 11 9 9 11 13 12 11 12 14 13 17 15 13 15 14 12 12 12 15 14 14 13 11 7 5 7 11 Weapon 11 | 1 7 12 12 9 10 14 13 10 9 11 11 11 11 12 12 12 11 8 10 11 9 11 12 11 11 12 12 11 10 11 11 12 13 9 6 12 7 Tool/Special . | . . . . . . . . . . . . . . . . . . . . . . . . . . . . . . . . . . . . . . Unused Backups 142 | 1 5 5 4 2 10 1 13 4 4 1 . 2 . 5 . 9 . . 2 7 . 4 1 . . 1 1 2 . . 1 2 . 15 9 3 28 Power 11 | . 1 . 2 . 3 . 2 . . . . . . 1 . 1 . . . . . . . . . . . . . . . . . . 1 . . Propulsion 10 | . 1 . . 1 . . 1 . . 1 . . . . . . . . 1 . . . . . . 1 . . . . . . . . 2 2 . Utility 66 | 1 . 4 2 . 2 1 5 3 3 . . . . 2 . 1 . . . 6 . 3 1 . . . . 1 . . . 1 . 4 3 1 22 Weapon 51 | . 3 1 . 1 5 . 5 . 1 . . 2 . 2 . 6 . . 1 1 . 1 . . . . 1 . . . 1 1 . 11 3 . 5 Tool/Special 4 | . . . . . . . . 1 . . . . . . . 1 . . . . . . . . . . . 1 . . . . . . . . 1 Average Slot Usage (%) 90 | . 98 99 87 99 98 93 99 99 99 100 100 97 100 91 83 84 85 93 80 74 77 77 82 93 90 93 94 94 94 89 81 75 70 59 92 100 88 Engine 3 | . 14 14 14 14 9 9 8 2 5 3 . 4 7 7 7 1 . . . . 6 2 . . . . . . . . . . . . . . . Core 1 | . . . . . . . . 6 1 . . . . . . 5 6 3 4 3 . . . . . 5 5 4 5 5 5 1 . . . . . Reactor 2 | . . . . . . . . . . 3 7 2 . . . . . 2 1 2 . 3 5 5 4 . . . . . 2 8 9 5 6 8 7 Wheel 23 | . 28 27 28 27 25 21 26 26 30 30 30 27 30 29 29 28 25 26 26 21 23 23 23 23 22 22 23 23 23 26 15 8 4 1 24 26 20 Device 14 | . 14 14 14 14 17 17 17 14 7 15 15 9 7 6 . 7 13 13 12 11 6 8 22 23 18 21 22 19 16 14 12 10 17 19 22 17 16 Storage 7 | . 14 14 14 14 9 9 9 9 7 7 7 7 7 7 7 7 6 6 6 6 6 6 5 5 5 5 5 5 5 5 5 5 4 2 3 4 4 Processor 5 | . . . . . . . . 3 6 . . 4 7 1 6 . 5 6 6 6 6 6 5 5 5 5 5 7 11 10 10 10 9 9 11 20 14 Protection 1 | . . . . . . . . . . . . . . . . . . . . 1 6 3 . . 4 . . . . . 1 4 . . . . 4 Energy Gun 4 | . 21 28 . 27 . . . . . 36 34 10 . . . . 1 33 2 . . 1 5 27 5 10 10 7 5 5 2 . . . 2 . 1 Energy Cannon 2 | . . . . . 8 7 8 1 . . . . . . . . . . . 4 6 3 . . . . . . . . 2 8 4 3 . . 3 Ballistic Gun 14 | . . . . . 27 27 15 27 36 . . 24 38 27 23 26 13 . 5 . . . . . 9 17 17 19 20 15 13 15 19 11 14 19 6 Ballistic Cannon 4 | . . . . . . . 12 4 . . . 1 . 5 7 4 5 . 12 13 13 12 10 . 8 . . . 2 5 5 1 . 4 2 . 4 Peak Build Rating 209 | 7 14 15 21 18 36 37 41 44 48 51 52 52 51 60 57 62 74 64 79 80 79 92 100 93 96 91 91 106 101 104 112 115 115 123 175 192 209 Average Rating 75 | 5 12 14 11 14 26 34 35 41 45 48 51 49 51 53 54 52 71 62 74 78 78 80 99 80 93 90 90 94 97 103 107 106 110 97 134 185 182 On Entrance 67 | . 7 14 15 15 18 35 31 39 42 45 51 52 51 51 57 54 60 61 64 75 79 78 89 96 80 88 91 89 101 101 104 110 105 115 57 173 190 Naked Turns . | . . . . . . . . . . . . . . . . . . . . . . . . . . . . . . . . . . . . . . Heaviest Build 241 | 12 92 92 95 93 112 112 118 116 113 121 120 121 108 197 196 197 188 178 216 228 228 236 222 183 222 201 201 211 210 196 220 241 213 219 168 174 197 Greatest Support 100 | 26 20 20 20 22 32 38 42 36 50 54 54 56 48 48 48 50 56 56 56 60 58 64 52 52 56 48 48 60 54 70 70 48 16 16 90 100 100 Greatest Overweight (x) 17 | . 4 9 4 9 5 6 3 4 2 2 2 4 2 4 6 5 5 3 3 17 5 13 4 3 5 4 4 5 3 2 4 14 13 17 5 1 5 Average Overweight (x) 3 | . 3 4 4 4 3 2 2 2 2 2 2 2 2 2 4 3 3 2 3 3 4 3 4 3 3 3 3 3 3 2 3 7 12 9 1 1 1 Largest Inventory Capacity 30 | 8 25 25 25 25 25 25 25 25 25 25 25 25 25 30 30 30 30 30 30 30 30 30 30 30 30 30 30 30 30 30 30 30 30 30 25 25 25 Average Capacity 27 | 7 22 25 25 25 25 25 25 25 25 25 25 25 25 28 30 30 30 30 30 30 30 30 30 30 30 30 30 30 30 30 30 30 30 21 22 25 25 Most Carried 30 | 8 25 25 25 25 25 25 25 25 25 25 25 25 25 30 30 30 30 29 30 30 30 30 30 30 30 30 30 30 30 30 30 30 30 30 25 25 25 Average Carried 26 | 3 19 24 21 24 24 24 24 24 24 24 25 24 25 28 29 29 29 28 29 29 29 29 29 29 29 29 30 29 30 29 29 28 28 18 19 24 23 Final Capacity 30 | 8 25 25 25 25 25 25 25 25 25 25 25 25 25 30 30 30 30 30 30 30 30 30 30 30 30 30 30 30 30 30 30 30 30 5 25 25 25 Final Carried 30 | 8 25 25 25 25 25 25 25 25 25 25 25 25 25 30 30 30 27 29 30 30 30 30 30 30 30 30 30 30 30 30 30 29 29 5 25 25 23 Class Distribution -------------------- 43% | Scavenger-Gunner 27% | Hauler-Gunner 12% | Mutant 6% | Gunner Dominant Class ---------------- Mutant | -10/Materials Mutant | -10/Mines Mutant | -10/Exiles Mutant | -9/Mines Scavenger-Gunner | -8/Materials Scavenger-Gunner | -8/Garrison Scavenger-Gunner | -8/Materials Gunner | -8/Garrison Scavenger-Gunner | -7/Factory Scavenger-Gunner | -7/Waste Gunner | -7/Factory Scavenger-Gunner | -7/Garrison Scavenger-Gunner | -7/Factory Scavenger-Gunner | -7/Garrison Hauler-Skirmisher | -7/Factory Scavenger-Gunner | -7/Garrison Scavenger-Gunner | -6/Factory Scavenger-Gunner | -6/Waste Hauler-Gunner | -6/Factory Hauler-Gunner | -6/Garrison Hauler-Gunner | -6/Factory Hauler-Gunner | -6/Garrison Hauler-Gunner | -5/Factory Scavenger-Gunner | -5/Waste Hauler-Tank | -5/Factory Scavenger-Gunner | -5/Upper Caves Hauler-Gunner | -5/Upper Caves Hauler-Gunner | -5/Warlord Hauler-Gunner | -4/Proximity Caves Scavenger-Gunner | -4/Factory Scavenger-Gunner | -4/DSF Scavenger-Gunner | -4/Garrison Scavenger-Gunner | -3/Research Hauler-Gunner | -3/DSF Scavenger-Gunner | -2/Research Scavenger-Gunner | -2/Testing Scavenger-Gunner | -2/Protoforge Resources | -11 -10 -10 -10 -9 -8 -8 -8 -8 -7 -7 -7 -7 -7 -7 -7 -7 -6 -6 -6 -6 -6 -6 -5 -5 -5 -5 -5 -5 -4 -4 -4 -4 -3 -3 -2 -2 -2 ----------- Run | Yrd Mat Min Exi Min Mat Gar Mat Gar Fac Was Fac Gar Fac Gar Fac Gar Fac Was Fac Gar Fac Gar Fac Was Fac Upp Upp War Pro Fac DSF Gar Res DSF Res Tes Frg Matter Collected 29457 | 366 387 35 125 189 821 921 1878 2449 558 202 . 1641 . 1994 230 2003 208 128 12 2035 223 1775 78 90 1453 559 278 593 250 . 988 1408 . 568 973 1086 2953 Remotely 4596 | . . . . . . . 393 131 . . . . . . . . . . . 413 . 464 . . 808 . . . . . 301 176 . 496 . 520 894 Salvage Created 33317 | 194 571 104 . 133 940 1064 1966 1982 664 874 53 2199 . 1260 65 1663 507 1014 12 1893 259 1594 524 1502 1459 1043 376 261 446 . 882 2092 . 543 653 936 3589 Parts 1387 | 23 54 9 . 10 50 52 103 99 29 9 2 88 . 59 5 65 16 9 3 76 10 76 12 10 54 11 22 10 17 . 37 93 . 16 27 55 176 Haulers Intercepted 13 | . 2 . . . 3 . 4 . . . . . . . . . 1 . . . . . . . 2 . . . . . 1 . . . . . . Recyclers Shooed 22 | . . . . . 2 . 1 . 1 . . . . . . . 2 . . . 1 . 8 . 6 . . . . . . . . . 1 . . Parts Field Recycled 7 | . . . . . . . . 7 . . . . . . . . . . . . . . . . . . . . . . . . . . . . . Retrieved Matter 232 | . . . . . . . . 232 . . . . . . . . . . . . . . . . . . . . . . . . . . . . . Parts Self-Destructed 38 | . . . . . . . . . . . . . . . . . . . . . . . . . . . 21 . 17 . . . . . . . . Prevented 3 | . . . . . . . . . . . . . . . . . . . . . . . . . . . 3 . . . . . . . . . . Kills | -11 -10 -10 -10 -9 -8 -8 -8 -8 -7 -7 -7 -7 -7 -7 -7 -7 -6 -6 -6 -6 -6 -6 -5 -5 -5 -5 -5 -5 -4 -4 -4 -4 -3 -3 -2 -2 -2 ------- Run | Yrd Mat Min Exi Min Mat Gar Mat Gar Fac Was Fac Gar Fac Gar Fac Gar Fac Was Fac Gar Fac Gar Fac Was Fac Upp Upp War Pro Fac DSF Gar Res DSF Res Tes Frg Combat Hostiles Destroyed 510 | . 15 4 . 19 18 26 31 44 5 4 1 42 . 24 . 20 . 4 . 34 3 32 . 6 14 . 9 4 10 . 8 38 . 6 5 13 71 Melee 4 | . . . . . . . . . . . 1 . . . . . . . . . . . . . . . . . . . . . . . . . 3 Guns 233 | . 14 2 . 5 13 16 10 30 5 1 . 39 . 11 . 10 . 2 . . . 3 . 3 9 . 5 4 5 . 7 7 . 1 5 12 14 Cannons 178 | . . . . . 5 6 21 9 . . . . . 10 . 2 . . . 31 3 23 . . 4 . . . . . 1 23 . 5 . 1 34 AOE 80 | . 1 2 . 14 . 4 . 5 . . . 1 . 3 . 8 . . . 3 . 6 . . 1 . 4 . 5 . . 7 . . . . 16 Classes Destroyed 26 | 3 6 . . 1 3 1 2 3 . 1 . 1 . . . . . . . . . . . . 1 . . 1 . . . . . . . . 3 Worker 22 | 1 1 . . . 1 . 4 . 5 . . . . . 1 . 1 . 1 . 1 . . . 5 . . . . . . . . . . 1 . Builder 17 | . 1 . . 1 1 . 2 . . . . . . . . . 1 . . . 1 . . . 1 . . . . . . . . . . 1 8 Tunneler 8 | 5 1 . . . . . 2 . . . . . . . . . . . . . . . . . . . . . . . . . . . . . . Hauler 13 | . 2 . . . 3 . 4 . . . . . . . . . 1 . . . . . . . 2 . . . . . 1 . . . . . . Recycler 20 | 1 . . . . 1 . 2 . 3 . . . . . . . 3 . . . 1 . 4 . 3 . . . . . . . . . 2 . . Mechanic 10 | . 1 . . . . . 1 1 . . . . . 1 1 . 1 . . . . . . . . . . . . . . 2 . . 1 . 1 Operator 4 | . . . . . . . 2 . . . . . . . . . . . . . . . 1 . . . . . . . . . . . 1 . . Drone 3 | . . . . . . . . . . . . . . . . . . . . . . . . . . . . . . . . . . . . . 3 Watcher 9 | . 2 . . . . . 3 1 . . . . . . . . . . . 1 . . . . . . . . . . . 1 . . . 1 . Swarmer 103 | . 12 3 . 5 4 4 2 4 . . . 7 . 6 . 7 . . . 8 1 13 1 . . . 4 . 5 . . 9 . 2 1 . 5 Saboteur 6 | . . . . . . . . . . . . . . . . . . . . . . . . . 1 . . . . . . 4 . . . . 1 Grunt 176 | . 3 1 . . 6 16 20 25 3 . 1 27 . 6 . 3 . . . 13 1 10 . . 9 . 3 2 4 . . 13 . . 1 . 9 Brawler 13 | . . . . . 2 1 1 2 . . . . . 1 . 1 . . . 2 . . . . . . . . . . . . . . . . 3 Duelist 7 | . . . . . . 1 1 . . . . . . 1 . . . . . . . 1 . . . . 1 . . . . 2 . . . . . Sentry 61 | . . . . . 5 3 6 7 2 . . 7 . 6 . 1 . . . 8 . 1 . . 1 . 1 . 1 . . 6 . . 2 . 4 Demolisher 2 | . . . . . . . . 2 . . . . . . . . . . . . . . . . . . . . . . . . . . . . . Specialist 7 | . . . . . . . . . . . . 1 . 1 . . . . . . . . . . . . . . . . 3 1 . 1 . . . Hunter 23 | . . . . . 1 1 . 1 . . . . . 1 . 2 . . . 2 . 3 . . . . . . . . 4 3 . . . 5 . Programmer 45 | . . . . . . . . 2 . . . . . 2 . 6 . . . 1 1 3 . . 2 . . 1 . . . . . . . 8 19 Heavy 2 | . . . . . . . 1 . . . . . . . . . . . . . . . . . . . . . . . 1 . . . . . . Behemoth 3 | . . . . . . . . 1 . . . . . . . . . . . . . . . . 1 . . . . . . 1 . . . . . Compactor 14 | . . . . . . . . . . 4 . . . . . . . 4 . . . . . 6 . . . . . . . . . . . . . Hotshot 9 | . . . . . . . . . . . . . . . . . . . . . . . . . . . . . . . . . . . . . 9 Decapitator 9 | . . . . . . . . . . . . . . . . . . . . . . . . . . . . . . . . . . . . . 9 Immortal 3 | . . . . . . . . . . . . . . . . . . . . . . . . . . . . . . . . . . . . . 3 Overlord 1 | . . . . . . . . . . . . . . . . . . . . . . . . . . . . . . . . . . . . . 1 Striker 2 | . . . . . . . . . . . . . . . . . . . . . . . . . . . . 1 . . . . . . 1 . . V-Series 5 | . . . . . . . . . . . . . . . . . . . . . . . . . . . . . . . . . . . . . 5 Assembled 14 | . . . . 14 . . . . . . . . . . . . . . . . . . . . . . . . . . . . . . . . . Thug 3 | . . . . . . . . . . . . . . . . . . . . . . 1 . . . . . . . . . . . 2 . . . Butcher 1 | . . . . . . . . . . . . . . . . . . . . . . 1 . . . . . . . . . . . . . . . Guerrilla 1 | . . . . . . . . . . . . . . . . . . . . . . . . . . . . . . . . . . 1 . . . Infiltrator 2 | . . . . . . . . . . . . . . . . . . . . . . 2 . . . . . . . . . . . . . . . Best Kill Streak 13 | 4 5 3 . 13 5 4 7 10 6 2 1 8 . 4 1 7 2 4 1 11 4 8 1 5 5 . 4 4 5 . 6 9 . 3 2 4 9 Combat Bots Only 13 | . 3 3 . 13 4 4 6 10 4 2 1 8 . 4 . 7 . 4 . 11 1 8 . 5 3 . 4 4 5 . 5 9 . 3 1 3 9 Max Kills in Single Turn 5 | 1 2 2 . 4 2 4 2 3 1 1 1 2 . 2 1 3 1 1 1 2 2 3 1 1 1 . 2 3 4 . 1 5 . 1 1 2 3 Gunslinging 2 | . 1 . . 1 . . . . . . . 1 . . . . . . . . . 2 . . . . . 1 . . . . . . . . . Exploded 5 | . 1 2 . 4 . 4 . 3 . . . 1 . 2 . 3 . . . 2 . 2 . . 1 . 2 . 4 . . 5 . . . . 2 Melee 1 | . . . . . . . . . . . 1 . . . . . . . . . . . . . . . . . . . . . . . . . 1 Uniques/NPCs Destroyed . | . . . . . . . . . . . . . . . . . . . . . . . . . . . . . . . . . . . . . . Combat | -11 -10 -10 -10 -9 -8 -8 -8 -8 -7 -7 -7 -7 -7 -7 -7 -7 -6 -6 -6 -6 -6 -6 -5 -5 -5 -5 -5 -5 -4 -4 -4 -4 -3 -3 -2 -2 -2 -------- Run | Yrd Mat Min Exi Min Mat Gar Mat Gar Fac Was Fac Gar Fac Gar Fac Gar Fac Was Fac Gar Fac Gar Fac Was Fac Upp Upp War Pro Fac DSF Gar Res DSF Res Tes Frg Hostile Shots Fired 2622 | . 49 7 . 33 54 78 153 119 39 . 2 151 . 149 21 186 . . . 310 4 123 5 . 98 . 13 70 24 . 72 202 . 55 27 106 472 Missed 771 | . 12 1 . 6 19 15 44 24 11 . . 49 . 68 4 57 . . . 112 1 30 2 . 30 . 4 28 14 . 21 57 . 20 9 31 102 Hits 1851 | . 37 6 . 27 35 63 109 95 28 . 2 102 . 81 17 129 . . . 198 3 93 3 . 68 . 9 42 10 . 51 145 . 35 18 75 370 Melee 89 | . . . . . 2 2 . . . . . . . . . . . . . 1 . 3 . . . . 3 1 . . . 5 . . . . 72 Projectile 1762 | . 37 6 . 27 33 61 109 95 28 . 2 102 . 81 17 129 . . . 197 3 90 3 . 68 . 6 41 10 . 51 140 . 35 18 75 298 AOE 16 | . . . . . . . . 2 . . . . . . . . . . . . . . . . . . . . . . . . . . . . 14 Critical Strikes 121 | . . . . . 4 2 8 5 1 . . 3 . 1 . 11 . . . 5 . 4 . . 3 . 1 2 . . 1 6 . 1 1 5 57 Actively Blocked 77 | . . . . . . . . . . . . . . . . . . . . . . . . . 3 . 1 2 . . 1 6 . 1 1 5 57 Part Disruptions 9 | . . . . . . . . 1 . . . . . 1 . 1 . . . . . . . . . . . . . . 2 1 . . . . 3 Damage Taken 33212 | . 328 85 . 422 514 975 1599 1537 305 . 26 1480 . 833 272 1972 86 42 . 2261 57 1478 54 . 1326 . 212 945 110 . 948 2638 . 579 405 844 10879 Core 3573 | . 72 . . 31 . 61 187 151 62 . 10 174 . 99 . 161 . . . 201 . 68 . . 187 . . 132 21 . 72 314 . 84 13 74 1399 Absorbed by Shields 3277 | . . . . . . . 165 210 . . . . . . . . . . . 8 . . . . . . . 213 100 . 376 . . . 94 878 1233 Redirected to Shielding 304 | . . . . . . . . . . . . . . . . . . . . . . . . . . . . . . . . . . . . . 304 Ignored by Resistances 28 | . . . . . . . . . . . . . . . . . . . . . . 28 . . . . . . . . . . . . . . . Regen/Repaired (Parts) 1610 | . 69 . . . . . 91 . . . . . . . . . . . . . . . . . . . . 31 . . . . . . . . 1419 Core Remaining (%) 63 | 100 . . . 58 . . . 27 . . . . . . . 27 . . . . . 68 . . . . . . 66 . . 66 . 93 . . . Volleys Fired 1659 | 19 39 5 1 18 54 75 120 113 27 14 . 85 . 90 9 75 5 7 1 110 11 83 44 11 66 80 11 8 16 . 23 120 . 15 28 38 238 Largest 5 | 2 2 2 1 2 4 4 4 4 5 5 . 5 . 5 4 5 4 5 1 3 3 4 3 5 5 1 5 5 5 . 5 5 . 5 5 5 5 Hottest 436 | 40 100 90 . 90 149 149 185 183 125 401 . 401 . 169 154 165 159 400 28 230 230 230 234 400 253 94 287 223 216 . 219 436 . 294 251 198 420 Shots Fired 4460 | 38 69 10 1 27 188 219 383 398 119 59 . 331 . 255 33 189 13 35 1 208 19 149 48 55 226 80 43 21 39 . 91 307 . 64 84 170 488 Gun 2861 | 38 60 10 . 17 134 151 172 297 117 56 . 323 . 190 28 149 10 35 1 1 . 10 44 55 158 80 40 21 35 . 68 120 . 26 71 155 189 Cannon 1538 | . . . . . 54 64 210 98 2 1 . 5 . 62 5 34 3 . . 204 19 134 4 . 68 . . . 1 . 23 184 . 38 13 15 297 Launcher 51 | . . . . 10 . 4 1 3 . 2 . 3 . 3 . 6 . . . 3 . 5 . . . . 3 . 3 . . 3 . . . . 2 Special 10 | . 9 . 1 . . . . . . . . . . . . . . . . . . . . . . . . . . . . . . . . . . Kinetic 3027 | 38 . . . . 134 151 277 360 119 3 . 236 . 252 33 183 13 . 1 105 8 72 4 . 162 27 24 12 29 . 81 153 . 50 66 166 268 Thermal 1240 | . 9 . . . 54 64 105 35 . 54 . 92 . . . . . 35 . 100 11 72 44 55 64 53 16 8 7 . 10 124 . 14 18 4 192 Explosive 51 | . . . . 10 . 4 1 3 . 2 . 3 . 3 . 6 . . . 3 . 5 . . . . 3 . 3 . . 3 . . . . 2 Electromagnetic 87 | . 60 10 . 17 . . . . . . . . . . . . . . . . . . . . . . . . . . . . . . . . . Entropic 54 | . . . . . . . . . . . . . . . . . . . . . . . . . . . . 1 . . . 27 . . . . 26 Robot Hit Streak 41 | 6 10 3 4 5 13 16 12 12 6 12 . 19 . 12 3 6 3 14 11 7 4 8 10 24 13 9 8 3 9 . 16 13 . 4 11 7 41 Robot Miss Streak 9 | 4 6 2 . 3 5 3 4 7 6 3 . 6 . 7 3 9 2 4 . 5 2 7 4 3 6 2 2 2 1 . 4 5 . 3 7 5 5 Penetration Max 2 | . . . . . . 1 1 . . . . . . 1 1 1 . . . 1 . . . . 1 1 1 1 . . . 1 . 1 1 2 1 Secondary Targets 35 | . 3 . . 1 . . . 2 1 . . 15 . . . 1 . . . . . 2 . . . . 2 2 2 . . . . . . 2 2 Max Gunslinging Chain 2 | . 1 . . 1 . . . 1 1 . . 1 . . . 1 . . . . . 2 . . . . 1 1 1 . . . . . . 1 1 Capacitor 28 | . . . . . . . . . . . . . . . . . . . . . . . . . . . . . . . . . . . . . 28 Shots Hit Robots 2350 | 18 40 8 6 16 117 114 194 185 58 50 2 194 . 133 10 88 19 27 1 107 10 86 33 49 108 27 29 9 21 . 41 119 . 26 45 86 274 Core Hits 1270 | 12 29 7 . 28 49 52 84 94 24 21 1 120 . 52 5 48 7 19 1 54 6 61 11 27 55 17 17 5 21 . 26 87 . 16 28 44 142 Critical Kills 38 | . . . . . . 1 2 . . . . 1 . 1 . 4 . . . . . . . . 2 5 3 1 3 . 2 4 . 2 1 4 2 Critical Parts Destroyed 48 | . . . . . 1 1 2 . . . . . . 1 . 7 1 . . . . . . . 9 5 . 1 2 . 1 3 . 3 1 7 3 Critical Strikes 147 | . . . . . 3 2 4 1 . . . 3 . 7 . 16 2 . . 4 . 10 . . 13 10 3 2 5 . 4 17 . 5 2 11 23 Burn 1 | . . . . . . . . . . . . . . . . . . . . . . . . . . . . . . . . . . . . . 1 Meltdown 3 | . . . . . . . . . . . . . . . . . . . . . . . . . . . . . . . . 1 . . . . 2 Destroy 89 | . . . . . 3 2 4 . . . . 1 . 3 . 12 1 . . . . . . . 12 10 3 2 5 . 3 7 . 5 2 11 3 Blast 26 | . . . . . . . . 1 . . . . . 3 . . . . . 3 . 4 . . 1 . . . . . 1 1 . . . . 12 Impale 17 | . . . . . . . . . . . . 2 . 1 . 4 1 . . 1 . 6 . . . . . . . . . . . . . . 2 Sunder 11 | . . . . . . . . . . . . . . . . . . . . . . . . . . . . . . . . 8 . . . . 3 Melee Attacks 276 | . 3 . 5 . . 14 . 13 8 . 2 52 . 35 . 35 16 . . 39 . 41 . . . . . . . . . . . . . . 13 Impact 3 | . 3 . . . . . . . . . . . . . . . . . . . . . . . . . . . . . . . . . . . . Slashing 20 | . . . . . . 9 . 11 . . . . . . . . . . . . . . . . . . . . . . . . . . . . . Piercing 218 | . . . . . . . . 2 . . 2 50 . 33 . 35 15 . . 35 . 33 . . . . . . . . . . . . . . 13 Sneak Attacks 49 | . . . 5 . . 5 . 1 8 . 1 2 . 3 . . 8 . . 4 . 12 . . . . . . . . . . . . . . . Combat Hostiles . | . . . . . . . . . . . . . . . . . . . . . . . . . . . . . . . . . . . . . . Follow-up Attacks . | . . . . . . . . . . . . . . . . . . . . . . . . . . . . . . . . . . . . . . Damage Inflicted 81658 | 222 671 159 . 925 2075 3080 4319 4050 886 1327 101 4467 . 3930 193 3736 832 701 16 6744 636 5299 1071 1407 3415 466 1117 270 851 . 981 5724 . 1015 1290 2732 16950 Guns 34586 | 222 566 88 . 135 1501 1933 1932 2547 886 1327 . 3513 . 1724 193 1014 123 701 16 . . 141 1003 1407 2219 466 740 270 504 . 724 1656 . 403 1245 2448 2939 Cannons 29881 | . . . . . 574 679 2339 867 . . . . . 914 . 644 80 . . 4369 570 3184 68 . 1002 . . . . . 257 3353 . 612 17 284 10068 Explosions 9018 | . 105 71 . 790 . 468 48 581 . . . 249 . 166 . 510 . . . 351 66 520 . . 194 . 377 . 347 . . 715 . . 28 . 3432 Melee 8173 | . . . . . . . . 55 . . 101 705 . 1126 . 1568 629 . . 2024 . 1454 . . . . . . . . . . . . . . 511 Ramming . | . . . . . . . . . . . . . . . . . . . . . . . . . . . . . . . . . . . . . . Kinetic 41743 | 222 . . . . 1501 1933 3380 3110 886 20 . 2023 . 2638 193 1658 203 . 16 3399 241 2701 68 . 2055 231 462 237 396 . 927 2124 . 845 1038 2732 6504 Thermal 22222 | . 105 71 . 38 574 679 891 304 . 1307 . 1490 . . . . . 701 . 970 395 624 1003 1407 1360 235 278 33 108 . 54 1755 . 170 224 . 7446 Explosive 5988 | . . . . 752 . 468 48 581 . . . 249 . 166 . 510 . . . 351 . 520 . . . . 377 . 347 . . 715 . . 28 . 876 Electromagnetic 789 | . 566 88 . 135 . . . . . . . . . . . . . . . . . . . . . . . . . . . . . . . . . Impact 27 | . . . . . . . . . . . . . . . . . . . . . . . . . . . . . . . . . . . . . 27 Slashing . | . . . . . . . . . . . . . . . . . . . . . . . . . . . . . . . . . . . . . . Piercing 8173 | . . . . . . . . 55 . . 101 705 . 1126 . 1568 629 . . 2024 . 1454 . . . . . . . . . . . . . . 511 Entropic 2716 | . . . . . . . . . . . . . . . . . . . . . . . . . . . . . . . . 1130 . . . . 1586 Highest Corruption 40 | . 1 1 1 2 . . . 3 . 12 12 9 8 11 11 25 . 10 10 3 . 1 . 18 20 20 20 20 10 . 2 2 . . . 8 40 Average Corruption 9 | . 1 1 1 1 . . . 2 . 9 10 7 8 10 11 22 . 5 6 2 . 1 . 12 18 20 20 4 3 . 1 2 . . . 5 24 Corruption Purged 15 | . . . . . . . . . . . 3 2 . . . . . . 7 3 . . . . . . . . . . . . . . . . . Corruption Blocked . | . . . . . . . . . . . . . . . . . . . . . . . . . . . . . . . . . . . . . . Effects 689 | . 8 8 13 6 . . . 22 . 8 4 78 1 59 7 99 . 3 5 . . 1 . 5 43 42 39 6 26 . 2 37 . . . 23 144 Message Errors 146 | . 2 2 4 2 . . . 6 . . 2 17 1 16 2 18 . 1 1 . . 1 . 1 8 9 6 1 8 . . 9 . . . 3 26 Matter Fused 154 | . 3 4 3 . . . . 9 . 1 1 20 . 13 2 16 . . 3 . . . . . 6 13 12 1 7 . . 9 . . . 4 27 Heat Flow Errors 71 | . 1 1 2 1 . . . . . 3 . 6 . 4 . 10 . . . . . . . 2 4 4 4 . 3 . . 5 . . . 3 18 Energy Discharges 78 | . 1 . 3 1 . . . 2 . 1 . 8 . 9 . 12 . . . . . . . . 5 8 3 2 2 . . 5 . . . 4 12 Parts Rejected 4 | . . . . . . . . . . . . . . 1 . . . . . . . . . . 1 . . . . . . . . . . . 2 Parts Fused 11 | . . . . . . . . 1 . 1 . 2 . . . 6 . . . . . . . . . . . . . . 1 . . . . . . Data Loss (minor) 81 | . . 1 . . . . . 3 . 1 1 11 . 4 1 11 . 2 . . . . . 1 8 4 6 . 4 . . 3 . . . 3 17 Data Loss (major) 30 | . . . . . . . . . . . . 2 . 5 1 7 . . . . . . . 1 . . 3 1 2 . 1 2 . . . 1 4 Misfires 34 | . . . . 1 . . . . . 1 . 3 . 1 1 9 . . . . . . . . 2 2 2 1 . . . 1 . . . 2 8 Alerts 18 | . 1 . 1 1 . . . . . . . 4 . 1 . 2 . . 1 . . . . . 1 . 1 . . . . 1 . . . 2 2 Misdirections 5 | . . . . . . . . . . . . . . . . 1 . . . . . . . . 1 . . . . . . . . . . . 3 Weapon Failures 57 | . . . . . . . . 1 . . . 5 . 5 . 7 . . . . . . . . 7 2 2 . . . . 2 . . . 1 25 Overload Shots . | . . . . . . . . . . . . . . . . . . . . . . . . . . . . . . . . . . . . . . Overflow Damage 2978 | . . . . 53 14 76 66 66 . . 23 20 . 180 . 340 136 . . 350 10 449 33 . 173 . 88 . . . . 114 . . . 1 786 Projectiles 1567 | . . . . . 14 25 66 . . . . . . 7 . 185 10 . . 291 10 191 33 . 150 . . . . . . 81 . . . 1 503 Explosions 556 | . . . . 53 . 51 . 66 . . . 3 . . . 32 . . . 1 . . . . 23 . 88 . . . . 33 . . . . 206 Melee 855 | . . . . . . . . . . . 23 17 . 173 . 123 126 . . 58 . 258 . . . . . . . . . . . . . . 77 Knockbacks 95 | . . . . . . . 8 7 . . . . . 7 . 3 . . . 7 1 8 1 . 12 . . . . . . 7 . 3 . 2 29 Impact . | . . . . . . . . . . . . . . . . . . . . . . . . . . . . . . . . . . . . . . Kinetic 91 | . . . . . . . 8 7 . . . . . 6 . 3 . . . 7 1 8 1 . 11 . . . . . . 6 . 3 . 2 28 Secondary 4 | . . . . . . . . . . . . . . 1 . . . . . . . . . . 1 . . . . . . 1 . . . . 1 Self-Inflicted Damage 391 | . 19 24 . 17 . . . 61 . . . 22 . . . . . . . . . . . . . . . . 21 . . . . . . . 227 Shots 13 | . 2 1 . 1 . . . 2 . . . 1 . . . . . . . . . . . . . . . . 1 . . . . . . . 5 Rammed . | . . . . . . . . . . . . . . . . . . . . . . . . . . . . . . . . . . . . . . Targets Rammed . | . . . . . . . . . . . . . . . . . . . . . . . . . . . . . . . . . . . . . . Kicked . | . . . . . . . . . . . . . . . . . . . . . . . . . . . . . . . . . . . . . . Crushed . | . . . . . . . . . . . . . . . . . . . . . . . . . . . . . . . . . . . . . . Highest Temperature 429 | . 225 196 150 155 120 294 309 416 291 279 . 338 . 227 224 248 . 172 . 255 12 228 32 261 249 155 209 60 224 . 72 429 . 393 132 353 363 Average Temperature 74 | . 43 58 72 50 33 68 52 74 91 96 . 97 . 65 81 77 . 106 . 48 8 78 20 126 94 89 38 30 77 . 24 110 . 108 41 102 66 Received Heat Transfer 5918 | . 24 15 . 18 195 432 889 758 153 . 9 426 . 234 . 267 12 . . 567 18 228 18 . 480 . 18 49 28 . . 405 . 65 30 12 568 Effects 12 | . . . . . . . . 1 . . . . . . . . . . . . . 1 . . . . . . . . . 5 . 1 . 1 3 Shutdowns 1 | . . . . . . . . 1 . . . . . . . . . . . . . . . . . . . . . . . . . . . . . Energy Bleed 2 | . . . . . . . . . . . . . . . . . . . . . . 1 . . . . . . . . . . . . . 1 . Interference 8 | . . . . . . . . . . . . . . . . . . . . . . . . . . . . . . . . 5 . . . . 3 Damage (minor) 1 | . . . . . . . . . . . . . . . . . . . . . . . . . . . . . . . . . . 1 . . . Siege Activations . | . . . . . . . . . . . . . . . . . . . . . . . . . . . . . . . . . . . . . . Martial Activations . | . . . . . . . . . . . . . . . . . . . . . . . . . . . . . . . . . . . . . . Shielding Activations . | . . . . . . . . . . . . . . . . . . . . . . . . . . . . . . . . . . . . . . Robots Disrupted . | . . . . . . . . . . . . . . . . . . . . . . . . . . . . . . . . . . . . . . Combat Hostiles . | . . . . . . . . . . . . . . . . . . . . . . . . . . . . . . . . . . . . . . Robots Corrupted 2 | . . . . . . . . . . . . . . . . . . . . . . . . . 1 . . . . . . . . . . . 1 Combat Hostiles 1 | . . . . . . . . . . . . . . . . . . . . . . . . . . . . . . . . . . . . . 1 Parts Fried 5 | . 1 . . . . . . . . . . . . 1 . . . . . . . . . . 3 . . . . . . . . . . . . Impact Corruptions 2 | . . . . . . . . . . . . . . . . . . . . . . . . . 1 . . . . . . . . . . . 1 Robots Melted 13 | . . . . . . . . . . 3 . 2 . . . . . 2 . . . . . 3 . . . . . . . 1 . . . . 2 Combat Hostiles 13 | . . . . . . . . . . 3 . 2 . . . . . 2 . . . . . 3 . . . . . . . 1 . . . . 2 Parts Melted 50 | . . . . . . . 2 . . 9 . 8 . . . . . 5 . 1 1 . 3 13 1 . . . . . . 3 . . . . 4 Heat Transferred 28624 | . 100 100 . 50 888 829 1221 434 . 2872 . 3348 . . . . . 1600 . 1026 383 655 1295 3200 1630 296 370 37 148 . 74 1628 . 148 296 . 5996 Parts Sabotaged 10 | . . . . . . . . . . . . . . . . . . . . . . . . . . . . . . . . 10 . . . . . Parts Stolen . | . . . . . . . . . . . . . . . . . . . . . . . . . . . . . . . . . . . . . . Parts Stripped . | . . . . . . . . . . . . . . . . . . . . . . . . . . . . . . . . . . . . . . Power Chain Reactions 4 | . 2 1 . 1 . . . . . . . . . . . . . . . . . . . . . . . . . . . . . . . . . Alert | -11 -10 -10 -10 -9 -8 -8 -8 -8 -7 -7 -7 -7 -7 -7 -7 -7 -6 -6 -6 -6 -6 -6 -5 -5 -5 -5 -5 -5 -4 -4 -4 -4 -3 -3 -2 -2 -2 ------- Run | Yrd Mat Min Exi Min Mat Gar Mat Gar Fac Was Fac Gar Fac Gar Fac Gar Fac Was Fac Gar Fac Gar Fac Was Fac Upp Upp War Pro Fac DSF Gar Res DSF Res Tes Frg Maximum Alert Level 5 | . . . . . . 4 2 5 4 1 1 5 3 5 4 5 4 1 1 5 4 5 4 2 3 . . . . . . 5 4 3 2 1 4 Low Security (%) 22 | 100 100 100 . 100 100 15 2 . . . 33 2 . . . . . . 72 8 . . . . 15 . . . . 100 100 2 . . . 97 13 Level 1 14 | . . . . . . 13 63 . . 100 66 17 . . . . . 100 27 8 . . . 64 41 . . . . . . . . . 34 2 21 Level 2 13 | . . . . . . 18 34 17 . . . 16 . . . 2 . . . 26 . . . 35 6 . . . . . . 11 . . 65 . 17 Level 3 15 | . . . . . . 45 . 9 84 . . 21 100 16 28 22 92 . . 19 85 13 . . 37 . . . . . . 13 . 100 . . 22 Level 4 17 | . . . . . . 7 . 32 15 . . 21 . 29 71 45 7 . . 23 14 25 100 . . . . . . . . 24 100 . . . 24 Level 5 16 | . . . . . . . . 40 . . . 21 . 54 . 29 . . . 13 . 60 . . . . . . . . . 46 . . . . . High Security . | . . . . . . . . . . . . . . . . . . . . . . . . . . . . . . . . . . . . . . Max Security . | . . . . . . . . . . . . . . . . . . . . . . . . . . . . . . . . . . . . . . Sterilizations 2 | . . . . . . . . . . . . . . . . . . . . . . . . . . . . . . . 1 . . 1 . . . Peak Influence 2688 | 15 110 93 . 95 185 1204 628 2086 1127 391 228 1942 1033 2061 1184 2119 1112 364 214 1764 1112 2688 1413 429 794 . . . . . 181 2471 1389 1046 593 211 1460 Initial 1411 | . . 28 . . . 69 586 408 1094 391 220 128 1019 723 1081 669 1112 364 214 88 926 774 1411 429 230 . . . . . . 135 1389 955 588 170 72 Average 836 | 3 51 24 . 27 82 665 353 1353 1077 352 207 1024 1021 1501 1107 1351 1052 336 173 943 988 1724 1329 380 451 . . . . . 143 1502 1328 1011 424 138 704 Influence Increases 23683 | 35 561 236 . 244 646 1215 1231 1718 247 14 44 1924 14 1468 156 1660 167 2 13 1766 270 1954 91 . 930 5 200 407 220 . 231 2556 5 211 288 436 2518 Destroy 0b10 Robot/C 11120 | . 300 160 . 140 360 620 620 880 100 . 20 940 . 600 100 680 20 . . 740 120 700 20 . 280 . 180 300 200 . 160 980 . 120 100 260 1420 Destroy 0b10 Robot/NC 720 | 35 40 . . 5 30 . 100 15 45 . . 20 . 20 10 45 35 . 5 40 15 40 25 . 55 5 . 5 . . 10 25 . 15 20 15 45 Destroy Leader 1296 | . 68 30 . 20 96 10 194 30 30 . 10 40 . 60 30 80 12 . . 50 30 60 10 . 54 . 20 . 20 . 30 60 . 20 30 52 150 Allied During Kill 689 | . . 25 . 20 11 55 . . . . 6 53 . 79 8 101 13 . 1 33 36 28 7 . . . . 72 . . . 117 . 24 . . . Successful Hack 372 | . 30 . . . 11 37 36 28 22 . 8 21 14 14 . 16 14 . 7 14 11 14 . . 4 . . . . . . 14 5 . . 28 24 Select Force Hacks 60 | . 60 . . . . . . . . . . . . . . . . . . . . . . . . . . . . . . . . . . . . Disable Machine 1095 | . . 15 . 15 15 45 105 15 . . . 45 . 60 . 15 30 . . 60 30 75 15 . 165 . . . . . 15 60 . . 45 15 255 Anti-Garrison Action 5100 | . . . . . . 350 . 600 . . . 650 . 450 . 550 . . . 550 . 900 . . 200 . . . . . . 700 . . . . 150 Destroy Structure 2436 | . 18 6 . 44 18 98 101 75 5 14 . 110 . 185 8 143 43 2 . 219 28 137 14 . 142 . . . . . 16 465 . 32 93 36 384 Partial Spotted 45 | . 15 . . . 30 . . . . . . . . . . . . . . . . . . . . . . . . . . . . . . . . Lose Combat Pursuer 750 | . 30 . . . 75 . 75 75 45 . . 45 . . . 30 . . . 60 . . . . 30 . . 30 . . . 135 . . . 30 90 Influence Decreases 22233 | 35 487 310 . 244 539 118 1807 260 1214 818 175 166 923 440 1260 498 1245 737 192 129 928 372 1551 899 473 671 236 324 387 . 50 266 1202 439 1031 611 1196 Entered New Map 13113 | . . 46 . . . 38 618 220 992 728 95 56 923 310 980 288 1007 677 92 39 838 332 1277 799 99 291 23 84 167 . . 46 1082 319 458 133 56 Time Decay 6395 | 35 477 234 . 203 355 . 699 . 222 90 40 . . . 120 . 238 60 100 . 90 . 254 80 334 380 213 140 220 . . . 120 . 553 478 660 Lost Part 1205 | . 10 10 . 35 20 60 40 40 . . . 50 . 10 10 150 . . . 50 . 40 . . 20 . . 20 . . 50 80 . 20 10 . 480 Lost Ally 796 | . . 20 . 6 40 20 . . . . 40 60 . 120 . 60 . . . 40 . . 20 20 20 . . 80 . . . 140 . 100 10 . . Purge Threat 724 | . . . . . 124 . 450 . . . . . . . 150 . . . . . . . . . . . . . . . . . . . . . . Squads Dispatched 62 | . 4 . . . 4 . 9 . 3 . 3 . 1 . 4 . . . . . 1 . 4 . 5 . . . . . 2 . 2 1 3 4 12 Investigation 10 | . 3 . . . 1 . . . . . 1 . . . 1 . . . . . . . . . 2 . . . . . . . . . 1 . 1 Extermination 12 | . . . . . . . . . . . . . . . . . . . . . . . 1 . 1 . . . . . . . . . . 4 6 Reinforcement 15 | . 1 . . . . . 1 . 2 . 1 . 1 . . . . . . . . . 1 . 1 . . . . . 2 . . 1 2 . 2 Assault 10 | . . . . . . . 1 . 1 . . . . . . . . . . . . . 2 . 1 . . . . . . . 2 . . . 3 Garrison 15 | . . . . . 3 . 7 . . . 1 . . . 3 . . . . . 1 . . . . . . . . . . . . . . . . Intercept . | . . . . . . . . . . . . . . . . . . . . . . . . . . . . . . . . . . . . . . Searches Triggered . | . . . . . . . . . . . . . . . . . . . . . . . . . . . . . . . . . . . . . . Construction Impeded 3 | . . . . . . . . . . . . . . . . . . . . . . . . . 1 . . . . . . . . . . . 2 Haulers Reinforced 1 | . . . . . . . . . . . . . . . . . . . . . . . . . . . . . . . . . . . 1 . . Active Scanning Responses . | . . . . . . . . . . . . . . . . . . . . . . . . . . . . . . . . . . . . . . Cargo Convoy Interrupts . | . . . . . . . . . . . . . . . . . . . . . . . . . . . . . . . . . . . . . . Stealth | -11 -10 -10 -10 -9 -8 -8 -8 -8 -7 -7 -7 -7 -7 -7 -7 -7 -6 -6 -6 -6 -6 -6 -5 -5 -5 -5 -5 -5 -4 -4 -4 -4 -3 -3 -2 -2 -2 --------- Run | Yrd Mat Min Exi Min Mat Gar Mat Gar Fac Was Fac Gar Fac Gar Fac Gar Fac Was Fac Gar Fac Gar Fac Was Fac Upp Upp War Pro Fac DSF Gar Res DSF Res Tes Frg Distress Signals 17 | . 1 . . . 3 . 1 2 . . . . . . . . . . . . . . . . 1 . . 1 . . . 2 . . 5 1 . Communications Jammed 15 | . . . . . . . . . . . . . . . . . . . . . . . . . . . . . . . . . . 2 . 10 3 Distress Signals 10 | . . . . . . . . . . . . . . . . . . . . . . . . . . . . . . . . . . . . 10 . Times Spotted 708 | . 22 7 . 18 27 26 46 44 7 6 2 46 . 27 5 32 2 3 . 37 5 29 6 5 21 . 8 68 9 . 7 54 . 8 25 24 82 Peak Tracking Total 13 | . 4 3 9 5 8 3 6 6 5 3 1 6 1 7 2 6 1 2 . 7 3 4 3 3 5 . 4 13 5 . 3 8 . 3 6 4 7 Tactical Retreats 33 | . 1 . . . 3 . 5 3 1 . . 2 . . . 2 . . . 2 . . . . 2 . . 2 . . . 4 . . . 2 4 Traps | -11 -10 -10 -10 -9 -8 -8 -8 -8 -7 -7 -7 -7 -7 -7 -7 -7 -6 -6 -6 -6 -6 -6 -5 -5 -5 -5 -5 -5 -4 -4 -4 -4 -3 -3 -2 -2 -2 ------- Run | Yrd Mat Min Exi Min Mat Gar Mat Gar Fac Was Fac Gar Fac Gar Fac Gar Fac Was Fac Gar Fac Gar Fac Was Fac Upp Upp War Pro Fac DSF Gar Res DSF Res Tes Frg Traps Triggered 60 | . 2 . . . . 1 . 11 1 . . 9 . 5 . 7 1 . . 5 . 8 1 . . . . . . . . 2 . . . . 7 Indirectly . | . . . . . . . . . . . . . . . . . . . . . . . . . . . . . . . . . . . . . . Trap Hack Attempts 18 | . . . . . 9 . . . . . . . . . . . . . . 9 . . . . . . . . . . . . . . . . . Triggered . | . . . . . . . . . . . . . . . . . . . . . . . . . . . . . . . . . . . . . . Disarmed 3 | . . . . . 2 . . . . . . . . . . . . . . 1 . . . . . . . . . . . . . . . . . Reprogrammed . | . . . . . . . . . . . . . . . . . . . . . . . . . . . . . . . . . . . . . . Reused . | . . . . . . . . . . . . . . . . . . . . . . . . . . . . . . . . . . . . . . Traps Extracted . | . . . . . . . . . . . . . . . . . . . . . . . . . . . . . . . . . . . . . . Installed . | . . . . . . . . . . . . . . . . . . . . . . . . . . . . . . . . . . . . . . Triggered . | . . . . . . . . . . . . . . . . . . . . . . . . . . . . . . . . . . . . . . Most Traps Carried 3 | . . 3 3 3 3 . . . . . . . . . . . . . . . . . . . . . . . . . . . . . . . . Machines | -11 -10 -10 -10 -9 -8 -8 -8 -8 -7 -7 -7 -7 -7 -7 -7 -7 -6 -6 -6 -6 -6 -6 -5 -5 -5 -5 -5 -5 -4 -4 -4 -4 -3 -3 -2 -2 -2 ---------- Run | Yrd Mat Min Exi Min Mat Gar Mat Gar Fac Was Fac Gar Fac Gar Fac Gar Fac Was Fac Gar Fac Gar Fac Was Fac Upp Upp War Pro Fac DSF Gar Res DSF Res Tes Frg Machines Disabled 146 | . . 1 . 1 1 11 7 9 . . . 11 . 9 . 8 2 . . 12 2 11 1 . 11 1 . 2 . . 1 16 . . 3 1 25 Max in Single Turn 5 | . . 1 . 1 1 2 1 2 . . . 2 . 2 . 2 . . . 2 2 1 1 . 5 1 . 1 . . 1 2 . . 1 1 2 Garrison Access 6 | . . . . . . . . . . . . . . . . . . . . . . . . . 1 . . . . . . . . . 4 . 1 Garrison Relay 37 | . . . . . . 5 . 4 . . . 6 . 3 . 5 . . . 4 . 5 . . . . . . . . . 5 . . . . . Phase Generator 7 | . . . . . . 1 . 1 . . . 1 . 1 . 1 . . . 1 . . . . . . . . . . . 1 . . . . . Machines Repaired . | . . . . . . . . . . . . . . . . . . . . . . . . . . . . . . . . . . . . . . Machines Dismantled . | . . . . . . . . . . . . . . . . . . . . . . . . . . . . . . . . . . . . . . Machines Sabotaged . | . . . . . . . . . . . . . . . . . . . . . . . . . . . . . . . . . . . . . . Overloaded Fab Kills . | . . . . . . . . . . . . . . . . . . . . . . . . . . . . . . . . . . . . . . Hacking | -11 -10 -10 -10 -9 -8 -8 -8 -8 -7 -7 -7 -7 -7 -7 -7 -7 -6 -6 -6 -6 -6 -6 -5 -5 -5 -5 -5 -5 -4 -4 -4 -4 -3 -3 -2 -2 -2 --------- Run | Yrd Mat Min Exi Min Mat Gar Mat Gar Fac Was Fac Gar Fac Gar Fac Gar Fac Was Fac Gar Fac Gar Fac Was Fac Upp Upp War Pro Fac DSF Gar Res DSF Res Tes Frg Machines Accessed 104 | . 10 1 2 . 7 5 14 4 3 . 1 3 1 3 5 3 3 . 4 3 3 3 . . 4 . . 2 . 1 . 3 2 . 1 7 6 Terminals 76 | . 7 1 . . 4 5 10 4 3 . . 3 . 3 3 3 2 . 2 3 1 3 . . 3 . . . . 1 . 3 1 . . 6 5 Fabricators 3 | . . . . . . . . . . . . . . . . . . . 1 . . . . . . . . . . . . . 1 . . 1 . Repair Stations 2 | . 1 . . . . . 1 . . . . . . . . . . . . . . . . . . . . . . . . . . . . . . Recycling Units 4 | . 2 . . . . . 1 . . . . . . . . . . . . . 1 . . . . . . . . . . . . . . . . Scanalyzers 4 | . . . . . 2 . 1 . . . . . . . . . 1 . . . . . . . . . . . . . . . . . . . . Garrison Access 11 | . . . . . 1 . 1 . . . 1 . 1 . 2 . . . 1 . 1 . . . 1 . . . . . . . . . 1 . 1 Total Hacks 252 | . 34 2 2 . 26 10 38 10 9 . 3 7 2 10 9 8 4 . 8 5 9 8 . . 10 . . 2 . 1 . 5 7 . 1 10 12 Successful 103 | . 16 . 2 . 19 5 16 4 3 . 2 2 1 2 2 2 1 . 4 3 2 1 . . 3 . . 2 . 1 . 1 3 . . 3 3 Failed 149 | . 18 2 . . 7 5 22 6 6 . 1 5 1 8 7 6 3 . 4 2 7 7 . . 7 . . . . . . 4 4 . 1 7 9 Catastrophic 45 | . 4 1 . . 1 2 5 . 3 . . 2 . 3 5 2 2 . 3 2 1 . . . 2 . . . . . . 1 . . 1 2 3 Database Lockouts . | . . . . . . . . . . . . . . . . . . . . . . . . . . . . . . . . . . . . . . Manual 97 | . 23 2 1 . 10 1 16 3 4 . 2 . 1 4 1 3 . . 1 1 4 5 . . 7 . . 1 . . . . 3 . . . 4 Terminals 192 | . 25 2 . . 15 10 30 10 9 . . 7 . 10 6 8 3 . 4 5 4 8 . . 8 . . . . 1 . 5 3 . . 9 10 Fabricators 7 | . . . . . . . . . . . . . . . . . . . 2 . . . . . . . . . . . . . 4 . . 1 . Repair Stations 7 | . 4 . . . . . 3 . . . . . . . . . . . . . . . . . . . . . . . . . . . . . . Recycling Units 8 | . 5 . . . . . 1 . . . . . . . . . . . . . 2 . . . . . . . . . . . . . . . . Scanalyzers 12 | . . . . . 9 . 2 . . . . . . . . . 1 . . . . . . . . . . . . . . . . . . . . Garrison Access 22 | . . . . . 2 . 2 . . . 3 . 2 . 3 . . . 2 . 3 . . . 2 . . . . . . . . . 1 . 2 Terminal Hacks 57 | . 4 . 2 . 5 4 11 3 3 . . 2 . 1 1 1 1 . 2 2 1 1 . . 2 . . 2 . 1 . 1 1 . . 3 3 Record 2 | . . . 1 . . . . . . . . . . . . . . . . . . . . . . . . 1 . . . . . . . . . Part Schematic 3 | . . . . . 1 . 1 . 1 . . . . . . . . . . . . . . . . . . . . . . . . . . . . Robot Schematic 1 | . 1 . . . . . . . . . . . . . . . . . . . . . . . . . . . . . . . . . . . . Robot Analysis 1 | . . . . . 1 . . . . . . . . . . . . . . . . . . . . . . . . . . . . . . . . Prototype ID Bank 4 | . 1 . . . . . 2 . 1 . . . . . . . . . . . . . . . . . . . . . . . . . . . . Open Door 4 | . . . . . . 1 . . . . . 1 . . . . . . . 1 . . . . . . . 1 . . . . . . . . . Open DSF 2 | . . . . . . . . . . . . . . . . . . . . . . . . . . . . . . 1 . . 1 . . . . Branch Access Points 3 | . . . . . . . . . . . . . . . . . . . 1 . 1 . . . 1 . . . . . . . . . . . . Emergency Access Points 6 | . . . . . . 1 . 1 . . . . . 1 . . . . . 1 . 1 . . . . . . . . . . . . . 1 . Terminal Index 2 | . . . . . 1 . . . . . . . . . . . 1 . . . . . . . . . . . . . . . . . . . . Alert Level 4 | . . . . . 1 . 2 . . . . . . . . . . . 1 . . . . . . . . . . . . . . . . . . Unreport Threat 5 | . . . . . 1 . 3 . . . . . . . 1 . . . . . . . . . . . . . . . . . . . . . . Locate Traps 7 | . 1 . . . . . 2 . 1 . . . . . . . . . . . . . . . 1 . . . . . . . . . . 1 1 Hauler Manifests 1 | . . . . . . . . . . . . . . . . . . . . . . . . . . . . . . . . . . . . 1 . Registered Components 2 | . . . . . . . 1 . . . . . . . . . . . . . . . . . . . . . . . . . . . . . 1 Zone Layout 1 | . 1 . . . . . . . . . . . . . . . . . . . . . . . . . . . . . . . . . . . . Garrison Registry 2 | . . . . . . 1 . . . . . . . . . . . . . . . . . . . . . . . . . 1 . . . . . Patrol Navigation 3 | . . . . . . . . 1 . . . 1 . . . 1 . . . . . . . . . . . . . . . . . . . . . Security Stations 2 | . . . . . . 1 . 1 . . . . . . . . . . . . . . . . . . . . . . . . . . . . . Proto ID Catalog 2 | . . . 1 . . . . . . . . . . . . . . . . . . . . . . . . . . . . . . . . . 1 Fabricator Hacks 2 | . . . . . . . . . . . . . . . . . . . 1 . . . . . . . . . . . . . 1 . . . . Network Status 2 | . . . . . . . . . . . . . . . . . . . 1 . . . . . . . . . . . . . 1 . . . . Repair Station Hacks 6 | . 4 . . . . . 2 . . . . . . . . . . . . . . . . . . . . . . . . . . . . . . Scan Component 3 | . 2 . . . . . 1 . . . . . . . . . . . . . . . . . . . . . . . . . . . . . . Repair 3 | . 2 . . . . . 1 . . . . . . . . . . . . . . . . . . . . . . . . . . . . . . Recycling Unit Hacks . | . . . . . . . . . . . . . . . . . . . . . . . . . . . . . . . . . . . . . . Scanalyzer 10 | . . . . . 8 . 2 . . . . . . . . . . . . . . . . . . . . . . . . . . . . . . Insert Component 5 | . . . . . 4 . 1 . . . . . . . . . . . . . . . . . . . . . . . . . . . . . . Analyze 5 | . . . . . 4 . 1 . . . . . . . . . . . . . . . . . . . . . . . . . . . . . . Garrison Access Hacks 7 | . . . . . 1 . 1 . . . 1 . 1 . 1 . . . 1 . 1 . . . . . . . . . . . . . . . . Unlock Access 7 | . . . . . 1 . 1 . . . 1 . 1 . 1 . . . 1 . 1 . . . . . . . . . . . . . . . . Unauthorized Hacks 21 | . 8 . . . 5 1 . 1 . . 1 . . 1 . 1 . . . 1 . . . . 1 . . . . . . . 1 . . . . Terminals 15 | . 6 . . . 4 1 . 1 . . . . . 1 . 1 . . . 1 . . . . . . . . . . . . . . . . . Operators 1 | . 1 . . . . . . . . . . . . . . . . . . . . . . . . . . . . . . . . . . . . Skim 9 | . 5 . . . 4 . . . . . . . . . . . . . . . . . . . . . . . . . . . . . . . . Override 5 | . . . . . . 1 . 1 . . . . . 1 . 1 . . . 1 . . . . . . . . . . . . . . . . . Fabricators 1 | . . . . . . . . . . . . . . . . . . . . . . . . . . . . . . . . . 1 . . . . Haulers 1 | . . . . . . . . . . . . . . . . . . . . . . . . . . . . . . . . . 1 . . . . Repair Stations . | . . . . . . . . . . . . . . . . . . . . . . . . . . . . . . . . . . . . . . Recycling Units 2 | . 2 . . . . . . . . . . . . . . . . . . . . . . . . . . . . . . . . . . . . Tunnel 2 | . 2 . . . . . . . . . . . . . . . . . . . . . . . . . . . . . . . . . . . . Scanalyzers . | . . . . . . . . . . . . . . . . . . . . . . . . . . . . . . . . . . . . . . Garrison Access 3 | . . . . . 1 . . . . . 1 . . . . . . . . . . . . . 1 . . . . . . . . . . . . Reprogram 2 | . . . . . 1 . . . . . 1 . . . . . . . . . . . . . . . . . . . . . . . . . . Jam 1 | . . . . . . . . . . . . . . . . . . . . . . . . . 1 . . . . . . . . . . . . Data Cores Recovered 2 | . . . . . . . 2 . . . . . . . . . . . . . . . . . . . . . . . . . . . . . . Used . | . . . . . . . . . . . . . . . . . . . . . . . . . . . . . . . . . . . . . . Hacking Detections 89 | . 10 1 . . 6 3 12 2 3 . 1 2 1 3 5 3 3 . 4 2 3 3 . . 4 . . . . 1 . 3 1 . 1 6 6 Full Trace Events 16 | . 1 . . . 1 . . 2 . . . 2 . 2 1 2 . . . . . 3 . . 1 . . . . . . . . . . . 1 Feedback Events 3 | . . . . . . . . . . . . 1 . 1 . . . . . . . 1 . . . . . . . . . . . . . . . Corruption 3 | . . . . . . . . . . . . 1 . 1 . . . . . . . 1 . . . . . . . . . . . . . . . Feedback Blocked . | . . . . . . . . . . . . . . . . . . . . . . . . . . . . . . . . . . . . . . Robot Schematics Acquired 1 | . 1 . . . . . . . . . . . . . . . . . . . . . . . . . . . . . . . . . . . . Robots Built . | . . . . . . . . . . . . . . . . . . . . . . . . . . . . . . . . . . . . . . Authchips . | . . . . . . . . . . . . . . . . . . . . . . . . . . . . . . . . . . . . . . Time . | . . . . . . . . . . . . . . . . . . . . . . . . . . . . . . . . . . . . . . Total Robot Build Rating . | . . . . . . . . . . . . . . . . . . . . . . . . . . . . . . . . . . . . . . Part Schematics Acquired 8 | . . . . . 5 . 2 . 1 . . . . . . . . . . . . . . . . . . . . . . . . . . . . Parts Built . | . . . . . . . . . . . . . . . . . . . . . . . . . . . . . . . . . . . . . . Authchips . | . . . . . . . . . . . . . . . . . . . . . . . . . . . . . . . . . . . . . . Time . | . . . . . . . . . . . . . . . . . . . . . . . . . . . . . . . . . . . . . . Total Part Build Rating . | . . . . . . . . . . . . . . . . . . . . . . . . . . . . . . . . . . . . . . Parts Repaired 3 | . 2 . . . . . 1 . . . . . . . . . . . . . . . . . . . . . . . . . . . . . . Time 134 | . 102 . . . . . 32 . . . . . . . . . . . . . . . . . . . . . . . . . . . . . . Parts Recycled . | . . . . . . . . . . . . . . . . . . . . . . . . . . . . . . . . . . . . . . Recycled Matter . | . . . . . . . . . . . . . . . . . . . . . . . . . . . . . . . . . . . . . . Retrieved Matter . | . . . . . . . . . . . . . . . . . . . . . . . . . . . . . . . . . . . . . . Retrieved Components . | . . . . . . . . . . . . . . . . . . . . . . . . . . . . . . . . . . . . . . Parts Scanalyzed 5 | . . . . . 4 . 1 . . . . . . . . . . . . . . . . . . . . . . . . . . . . . . Part Schematics Acquired 5 | . . . . . 4 . 1 . . . . . . . . . . . . . . . . . . . . . . . . . . . . . . Parts Damaged . | . . . . . . . . . . . . . . . . . . . . . . . . . . . . . . . . . . . . . . Bothacking | -11 -10 -10 -10 -9 -8 -8 -8 -8 -7 -7 -7 -7 -7 -7 -7 -7 -6 -6 -6 -6 -6 -6 -5 -5 -5 -5 -5 -5 -4 -4 -4 -4 -3 -3 -2 -2 -2 ------------ Run | Yrd Mat Min Exi Min Mat Gar Mat Gar Fac Was Fac Gar Fac Gar Fac Gar Fac Was Fac Gar Fac Gar Fac Was Fac Upp Upp War Pro Fac DSF Gar Res DSF Res Tes Frg Used RIF Installer . | . . . . . . . . . . . . . . . . . . . . . . . . . . . . . . . . . . . . . . Robots Hacked 6 | . . . 4 . . . . . 1 . . . . . . . 1 . . . . . . . . . . . . . . . . . . . . Non-combat 5 | . . . 3 . . . . . 1 . . . . . . . 1 . . . . . . . . . . . . . . . . . . . . Combat 1 | . . . 1 . . . . . . . . . . . . . . . . . . . . . . . . . . . . . . . . . . Robot Hacks Applied 7 | . . . 5 . . . . . 1 . . . . . . . 1 . . . . . . . . . . . . . . . . . . . . parse_system 5 | . . . 5 . . . . . . . . . . . . . . . . . . . . . . . . . . . . . . . . . . find_chute 2 | . . . . . . . . . 1 . . . . . . . 1 . . . . . . . . . . . . . . . . . . . . Relay Couplers Released 152 | . . . . . . 22 . 15 . . . 26 . 12 . 24 . . . 17 . 18 . . . . . . . . . 15 . . 1 . 2 Machine Destruction 148 | . . . . . . 22 . 15 . . . 26 . 12 . 20 . . . 17 . 18 . . . . . . . . . 15 . . 1 . 2 Programmers 4 | . . . . . . . . . . . . . . . . 4 . . . . . . . . . . . . . . . . . . . . . Fabnet Peak Effective % . | . . . . . . . . . . . . . . . . . . . . . . . . . . . . . . . . . . . . . . Robots Rewired 36 | . . . . . . 3 . . 2 . . 5 . 1 . . . . . 2 . 4 . . . . . 5 . . . 14 . . . . . Allies Hacked . | . . . . . . . . . . . . . . . . . . . . . . . . . . . . . . . . . . . . . . Hacks Repelled . | . . . . . . . . . . . . . . . . . . . . . . . . . . . . . . . . . . . . . . Allies | -11 -10 -10 -10 -9 -8 -8 -8 -8 -7 -7 -7 -7 -7 -7 -7 -7 -6 -6 -6 -6 -6 -6 -5 -5 -5 -5 -5 -5 -4 -4 -4 -4 -3 -3 -2 -2 -2 -------- Run | Yrd Mat Min Exi Min Mat Gar Mat Gar Fac Was Fac Gar Fac Gar Fac Gar Fac Was Fac Gar Fac Gar Fac Was Fac Upp Upp War Pro Fac DSF Gar Res DSF Res Tes Frg Total Allies 55 | . . 3 1 . . 3 . . 2 1 2 5 . 3 . 4 . 2 . 2 . 6 . . . . . 5 . . . 16 . . . . . Largest Group 12 | . . 3 3 3 2 3 . . 2 2 4 4 4 4 1 4 2 2 2 2 2 6 4 2 1 . . 5 1 1 1 12 5 5 . . . Highest-Rated Group 391 | . . 40 41 41 25 87 . . 28 28 60 126 126 126 21 237 168 126 126 126 84 190 48 24 12 . . 254 64 64 64 391 268 268 . . . Highest-Rated Ally 95 | . . 16 17 17 17 31 . . 16 16 16 32 32 32 21 95 95 95 95 95 46 80 12 12 12 . . 64 64 64 64 80 80 80 . . . Initial Warlord ECA Mod 1636 | . . . . . . . 10 10 18 18 18 18 29 29 38 38 47 47 47 47 57 57 65 65 65 65 65 65 64 64 64 74 85 85 94 94 94 Total Orders 28 | . . . 2 . . . . . 2 . . 4 . . . . . . . . . 3 . . . . . 5 . . . 3 . . 9 . . STAY 9 | . . . 1 . . . . . 1 . . 2 . . . . . . . . . 2 . . . . . 2 . . . 1 . . . . . ROAM 1 | . . . . . . . . . . . . . . . . . . . . . . . . . . . . . . . . 1 . . . . . FOLLOW 8 | . . . 1 . . . . . 1 . . 2 . . . . . . . . . 1 . . . . . 2 . . . 1 . . . . . GUARD 1 | . . . . . . . . . . . . . . . . . . . . . . . . . . . . 1 . . . . . . . . . EXPLORE 8 | . . . . . . . . . . . . . . . . . . . . . . . . . . . . . . . . . . . 8 . . RETURN 1 | . . . . . . . . . . . . . . . . . . . . . . . . . . . . . . . . . . . 1 . . Ally Attacks 458 | . . 17 . 23 5 19 . . 1 54 10 21 1 41 8 41 1 19 . 19 14 7 23 33 1 . . 41 . . . 45 . 14 . . . Total Damage 10756 | . . 148 . 193 46 367 . . 17 699 127 534 20 930 108 1428 822 414 . 508 285 240 133 420 13 . . 1459 . . . 1388 . 457 . . . Kills 89 | . . 4 . 6 . 7 . . 1 2 . 5 . 6 5 14 2 . . 3 3 3 1 . . . . 12 . . . 12 . 3 . . . Allies Corrupted . | . . . . . . . . . . . . . . . . . . . . . . . . . . . . . . . . . . . . . . Allies Melted . | . . . . . . . . . . . . . . . . . . . . . . . . . . . . . . . . . . . . . . Field Lobotomies 1 | . . . 1 . . . . . . . . . . . . . . . . . . . . . . . . . . . . . . . . . . Intel | -11 -10 -10 -10 -9 -8 -8 -8 -8 -7 -7 -7 -7 -7 -7 -7 -7 -6 -6 -6 -6 -6 -6 -5 -5 -5 -5 -5 -5 -4 -4 -4 -4 -3 -3 -2 -2 -2 ------- Run | Yrd Mat Min Exi Min Mat Gar Mat Gar Fac Was Fac Gar Fac Gar Fac Gar Fac Was Fac Gar Fac Gar Fac Was Fac Upp Upp War Pro Fac DSF Gar Res DSF Res Tes Frg Active Infowar (turns) 15468 | 40 1579 773 1637 766 . . . . . . . . . . 246 . . . 206 . . 506 540 168 283 725 803 911 1269 230 20 . 220 316 1606 1237 1387 Optics 2499 | . . . . . . . . . . . . . . . . . . . . . . . . . . . . . . . . . . . 199 1237 1063 Sensors 1445 | . . . . . . . . . . . . . . . . . . . . . . . . . . 2 . . . . . . . . 617 826 . IFF 6094 | . . . . . . . . . . . . . . . . . . . 206 . . . 524 168 178 723 803 911 1269 230 18 . 219 315 530 . . Seismic 4795 | 40 1579 773 1637 766 . . . . . . . . . . . . . . . . . . . . . . . . . . . . . . . . . Machine Analysis 246 | . . . . . . . . . . . . . . . 246 . . . . . . . . . . . . . . . . . . . . . . Cloaking 3 | . . . . . . . . . . . . . . . . . . . . . . 1 . . . . . . . . 2 . . . . . . Jamming 5402 | . . . . . . . . . . . . . . . . . . . . . . 505 540 9 105 . . . . . . . 220 188 1213 1237 1385 Robot Analysis Total 1 | . . . . . 1 . . . . . . . . . . . . . . . . . . . . . . . . . . . . . . . . Derelict Logs Recovered 7 | . . 1 . 2 . . . . . . . . . . . . . . . . . . . . . 1 1 . 2 . . . . . . . . Drone Launches 7 | . . . . . . . . . . . . . . . . . . . . . . . . . . . . . . . . . . . 7 . . Drone Recoveries 4 | . . . . . . . . . . . . . . . . . . . . . . . . . . . . . . . . . . . 4 . . Exploration | -11 -10 -10 -10 -9 -8 -8 -8 -8 -7 -7 -7 -7 -7 -7 -7 -7 -6 -6 -6 -6 -6 -6 -5 -5 -5 -5 -5 -5 -4 -4 -4 -4 -3 -3 -2 -2 -2 ------------- Run | Yrd Mat Min Exi Min Mat Gar Mat Gar Fac Was Fac Gar Fac Gar Fac Gar Fac Was Fac Gar Fac Gar Fac Was Fac Upp Upp War Pro Fac DSF Gar Res DSF Res Tes Frg Turns Passed 38672 | 146 1579 773 1637 767 965 1164 2970 1902 475 198 95 1964 18 1601 251 1795 508 126 219 1913 186 2466 540 168 743 896 876 1627 1454 230 310 2144 259 371 1606 1237 2493 Spaces Moved 21422 | 88 929 522 920 477 422 634 1640 1157 309 103 71 1092 12 840 143 935 292 64 132 850 93 1250 287 76 307 530 619 1006 1016 92 121 755 59 79 1274 933 1293 Core 45 | 4 . . . . . . . . . . . . . . . . . . . . . . . . . . . . . . . . . 33 8 . . Treads . | . . . . . . . . . . . . . . . . . . . . . . . . . . . . . . . . . . . . . . Legs . | . . . . . . . . . . . . . . . . . . . . . . . . . . . . . . . . . . . . . . Wheels 21377 | 84 929 522 920 477 422 634 1640 1157 309 103 71 1092 12 840 143 935 292 64 132 850 93 1250 287 76 307 530 619 1006 1016 92 121 755 59 46 1266 933 1293 Hover . | . . . . . . . . . . . . . . . . . . . . . . . . . . . . . . . . . . . . . . Flight . | . . . . . . . . . . . . . . . . . . . . . . . . . . . . . . . . . . . . . . Fastest Speed 50 | 50 80 140 140 140 125 120 116 116 117 117 122 120 120 120 145 130 125 125 140 140 140 137 152 137 137 132 132 132 137 124 124 160 280 280 80 107 101 Average Speed 135 | 82 127 140 140 140 129 134 130 122 117 120 122 122 120 134 146 139 137 132 140 152 155 150 152 137 147 136 132 134 137 124 154 208 283 321 106 109 115 Slowest Speed 900 | 90 140 215 140 215 155 190 145 150 120 122 122 155 120 150 173 161 161 140 140 345 171 295 152 137 165 147 147 165 137 124 160 310 295 900 300 110 155 Overloaded Moves . | . . . . . . . . . . . . . . . . . . . . . . . . . . . . . . . . . . . . . . Propulsion Burnouts . | . . . . . . . . . . . . . . . . . . . . . . . . . . . . . . . . . . . . . . Robots Hopped . | . . . . . . . . . . . . . . . . . . . . . . . . . . . . . . . . . . . . . . Potential Cave-ins 16 | . . . . . . . . . . . . . . . . . . . . . . . . . . 3 . . . . . . . . . . 13 Cave-ins Triggered 1 | . . . . . . . . . . . . . . . . . . . . . . . . . . . . 1 . . . . . . . . . Exploration Rate (%) 57 | 5 98 98 71 89 43 76 92 91 5 90 1 92 1 95 6 99 11 64 5 84 3 90 10 79 14 64 85 90 92 1 83 71 1 86 82 89 36 Regions Visited 37 Branch Regions 9 Pre-discovered Areas 6 | . 4 . 1 . . . . . . . . . . . . . . . . . . . . . . 1 . . . . . . . . . . . Known Exits Taken 12 | . . . 1 . 1 . 1 . . . 1 . 1 . 1 . . . 1 . 1 . . . 1 . . . . 1 . . 1 . 1 . . Unknown Exits Taken 9 | 1 1 1 . 1 . . . . . . . . . . . . . . . . . . . . . 1 1 1 1 . . . . . . 1 . Scrap Searched 9 | . . 1 . 1 . . . . . . . . . . . . . . . . . . . . . 3 3 . 1 . . . . . . . . Spaces Dug 287 | . 8 . . 27 3 3 19 13 2 . . 20 . 3 2 24 3 . . 30 . 10 . . 1 21 14 1 5 . 2 23 . 2 2 2 47 Terrain Destroyed 1811 | . 19 6 . 61 17 95 103 70 2 17 . 96 . 97 5 124 4 . . 224 26 46 7 . 65 38 54 7 41 . 11 337 . 16 36 26 161 Melee 38 | . 2 . . . . 3 . 6 . . . 16 . 3 . 2 2 . . . . 4 . . . . . . . . . . . . . . . Projectile 647 | . 9 . . . 17 4 93 . 2 . . . . 12 5 28 2 . . 63 6 34 7 . 38 37 16 7 9 . 11 86 . 16 11 25 109 AOE 1119 | . 8 6 . 61 . 88 10 64 . 17 . 80 . 82 . 92 . . . 161 20 8 . . 27 . 38 . 32 . . 249 . . 25 . 51 Terrain Rammed . | . . . . . . . . . . . . . . . . . . . . . . . . . . . . . . . . . . . . . . Walls Destroyed . | . . . . . . . . . . . . . . . . . . . . . . . . . . . . . . . . . . . . . . Machines Disabled . | . . . . . . . . . . . . . . . . . . . . . . . . . . . . . . . . . . . . . . Actions | -11 -10 -10 -10 -9 -8 -8 -8 -8 -7 -7 -7 -7 -7 -7 -7 -7 -6 -6 -6 -6 -6 -6 -5 -5 -5 -5 -5 -5 -4 -4 -4 -4 -3 -3 -2 -2 -2 --------- Run | Yrd Mat Min Exi Min Mat Gar Mat Gar Fac Was Fac Gar Fac Gar Fac Gar Fac Was Fac Gar Fac Gar Fac Was Fac Upp Upp War Pro Fac DSF Gar Res DSF Res Tes Frg Total 27763 | 123 1238 557 1272 548 736 783 2246 1473 400 133 74 1481 15 1109 160 1211 351 77 167 1182 113 1611 345 98 439 622 647 1256 1048 207 190 1104 153 177 1453 1049 1915 Wait 1777 | . 204 12 310 30 144 9 346 63 19 3 . 65 3 11 2 23 4 2 7 16 1 9 . 1 9 . 6 104 9 108 1 48 83 8 15 25 77 Move 21392 | 87 928 521 919 476 422 633 1640 1156 309 102 70 1091 12 839 142 934 292 63 132 849 93 1248 287 75 306 529 618 1005 1015 91 120 754 58 78 1273 932 1293 Hop . | . . . . . . . . . . . . . . . . . . . . . . . . . . . . . . . . . . . . . . Pick Up 506 | 7 30 9 17 8 32 6 36 22 10 2 . 8 . 26 1 27 4 2 5 31 1 29 5 1 13 4 1 16 . 3 7 13 3 11 37 9 70 Fast Attach 151 | 7 2 . . 1 4 6 8 1 2 . . 5 . 4 1 7 1 . 3 10 1 15 1 . 2 . . 2 . . 3 12 2 2 18 5 26 Attach 232 | . 2 1 3 4 7 6 10 12 3 . . 4 . 4 1 13 5 . 3 14 1 15 3 2 7 2 . 4 . 1 10 27 2 5 1 4 56 Detach 77 | . . . . . 1 1 1 4 . . . . . 1 . 3 . . 6 8 . 10 . . . . . . . . 6 15 . 2 . . 19 Swap 600 | 2 15 . 1 6 23 14 35 30 11 10 2 41 . 30 2 17 17 3 4 32 3 43 1 6 24 4 9 41 8 3 13 25 1 15 49 17 43 Drop 548 | 1 15 9 16 5 40 11 50 19 11 2 . 13 . 29 2 21 7 . 6 40 2 41 4 2 12 3 2 21 . 1 7 12 4 41 32 19 48 Fire 1659 | 19 39 5 1 18 54 75 120 113 27 14 . 85 . 90 9 75 5 7 1 110 11 83 44 11 66 80 11 8 16 . 23 120 . 15 28 38 238 Melee 276 | . 3 . 5 . . 14 . 13 8 . 2 52 . 35 . 35 16 . . 39 . 41 . . . . . . . . . . . . . . 13 Ram . | . . . . . . . . . . . . . . . . . . . . . . . . . . . . . . . . . . . . . . Kick . | . . . . . . . . . . . . . . . . . . . . . . . . . . . . . . . . . . . . . . Crush . | . . . . . . . . . . . . . . . . . . . . . . . . . . . . . . . . . . . . . . Escape Stasis 325 | . . . . . . 8 . 40 . . . 64 . 40 . 56 . . . 24 . 45 . . . . . . . . . 16 . . . . 32 Rewire 202 | . . . . . . . . . . . . 53 . . . . . . . . . 32 . . . . . 55 . . . 62 . . . . . Trap 18 | . . . . . 9 . . . . . . . . . . . . . . 9 . . . . . . . . . . . . . . . . . Miscellaneous . | . . . . . . . . . . . . . . . . . . . . . . . . . . . . . . . . . . . . . . Route ------- -11/Scrapyard -10/Materials (discovered 6 exits: *Mat x3 / *Min x2 / [*Sub]) -10/Mines (discovered 3 exits: *Mat x2 / *Exi) -10/Exiles (discovered 2 exits: *Min x2) -9/Mines (discovered 2 exits: *Mat x2) -8/Materials (discovered 4 exits: *Fac x2 / *Sto / Gar) -8/Garrison (discovered 4 exits: *Mat x4) -8/Materials (discovered 5 exits: *Fac x3 / *Sto / Gar) -8/Garrison (discovered 3 exits: *Fac x3) -7/Factory -7/Waste -7/Factory -7/Garrison (discovered 3 exits: *Fac x3) -7/Factory -7/Garrison (discovered 3 exits: *Fac x3) -7/Factory (discovered 2 exits: [*Low] / Gar) -7/Garrison (discovered 3 exits: *Fac x3) -6/Factory -6/Waste -6/Factory (discovered 5 exits: Low x2 / Ext x2 / Gar) -6/Garrison (discovered 3 exits: *Fac x3) -6/Factory (discovered 5 exits: Low x2 / Ext x2 / Gar) -6/Garrison (discovered 3 exits: [*Fac x3]) -5/Factory -5/Waste -5/Factory (discovered 2 exits: *Upp x2) -5/Upper Caves -5/Upper Caves (discovered 2 exits: *Fac / *War) -5/Warlord -4/Proximity Caves -4/Factory (discovered 2 exits: Res / DSF) -4/DSF -4/Garrison (discovered 3 exits: *Res x3) -3/Research (discovered 2 exits: Arm / DSF) -3/DSF -2/Research (discovered 3 exits: *Acc / *Tes x2) -2/Testing (discovered 3 exits: *Acc / [*Sec] / *Frg) -2/Protoforge (discovered 1 exit: *Acc) History --------- Turn | Location | Event 10 | -11/Scrapyard | Discovered new exit (range 16) 147 | -11/Scrapyard | Entered Materials 198 | -10/Materials | Discovered new exit (range 6) 270 | -10/Materials | Discovered new exit (range 15) 294 | -10/Materials | Discovered new exit (range 8) 303 | -10/Materials | Build established: Mutant 408 | -10/Materials | Discovered new exit (range 4) 992 | -10/Materials | Repaired Imp. EM Shotgun 1045 | -10/Materials | Repaired Imp. EM Shotgun 1165 | -10/Materials | Discovered new exit (range 8) 1203 | -10/Materials | Loaded intel: 2 recycling unit locations 1240 | -10/Materials | Learned 2 Mines zone layouts 1277 | -10/Materials | Discovered new exit (range 7) 1283 | -10/Materials | Learned location of 1 exit from Storage 1291 | -10/Materials | Learned Storage non-interactive machine intel 1292 | -10/Materials | Learned Storage machine intel 1310 | -10/Materials | Learned location of Mines (-10) 1726 | -10/Materials | Entered Mines 1727 | -10/Mines | Identified exit to Materials 1735 | -10/Mines | Assisted by bots powering up and referring to "LRC-V3" 2005 | -10/Mines | A weapon hastily lodged in a ceiling crevice suddenly fell to the ground 2114 | -10/Mines | Found a Scrap Suit stashed away for nefarious purposes 2118 | -10/Mines | Found Scrap Suit 2141 | -10/Mines | Found a hidden stash of uninstalled traps 2279 | -10/Mines | Deemed a non-threat by the Exiles lab entrance 2279 | -10/Mines | Discovered new exit (range 5) 2348 | -10/Mines | Learned Materials stockpile data 2404 | -10/Mines | Discovered exit to Materials (range 7) 2499 | -10/Mines | Entered Exiles 2499 | -10/Exiles | Accompanied by 2 allies 2500 | -10/Exiles | Identified exit to Mines 2541 | -10/Exiles | Met 8R-AWN 2567 | -10/Exiles | Met EX-HEX 2648 | -10/Exiles | Met EX-DEC 2697 | -10/Exiles | Learned location of Zion (-6) 3093 | -10/Exiles | Met EX-BIN 3118 | -10/Exiles | Aligned with FarCom system 3119 | -10/Exiles | Given EX-Vault access code 3156 | -10/Exiles | Opened EX-Vault 3164 | -10/Exiles | Found Field Lobotomy Kit 3192 | -10/Exiles | Warned to stay clear of 0b10 Research branches 4099 | -10/Exiles | Assimilated 3Q-3CC(z) with FLK Orb 4100 | -10/Exiles | Attacked by the Exiles 4136 | -10/Exiles | Entered Mines 4136 | -9/Mines | Accompanied by 3 allies 4141 | -9/Mines | Learned Materials security intel 4277 | -9/Mines | Received a Rocket Launcher from a helpful Derelict 4323 | -9/Mines | Assembled infested the area 4486 | -9/Mines | Discovered new exit (range 15) 4494 | -9/Mines | Destroyed 13 combat bots 4526 | -9/Mines | Lost 5 parts (1p2n2w) 4600 | -9/Mines | Discovered new exit (range 14) 4611 | -9/Mines | Learned 2 Materials zone layouts 4903 | -9/Mines | Entered Materials 4903 | -8/Materials | Accompanied by 2 allies 4903 | -8/Materials | Evolved 4 slots: Propulsion x1, Utility x1, Weapon x2 4904 | -8/Materials | Identified exit to Factory 4904 | -8/Materials | Identified exit to Storage 5314 | -8/Materials | Build established: Scavenger-Gunner 5428 | -8/Materials | Discovered exit to Factory (range 10) 5868 | -8/Materials | Identified exit to Garrison 5868 | -8/Materials | Entered Garrison 5931 | -8/Garrison | Triggered checkpoint 5978 | -8/Garrison | Discovered new exit (range 5) 6028 | -8/Garrison | Discovered new exit (range 44) 6028 | -8/Garrison | Discovered new exit (range 43) 6028 | -8/Garrison | Discovered new exit (range 66) 6028 | -8/Garrison | Discovered new exit (range 20) 6028 | -8/Garrison | Identified exit to Materials 6039 | -8/Garrison | Triggered checkpoint 6140 | -8/Garrison | Garrison Relay disabled 6205 | -8/Garrison | Triggered checkpoint 6227 | -8/Garrison | Triggered checkpoint 6265 | -8/Garrison | Triggered checkpoint 6295 | -8/Garrison | Triggered checkpoint 6346 | -8/Garrison | Garrison Relay disabled 6354 | -8/Garrison | Triggered checkpoint 6502 | -8/Garrison | Garrison Relay disabled 6568 | -8/Garrison | Garrison Relay disabled 6643 | -8/Garrison | Triggered checkpoint 6665 | -8/Garrison | Triggered checkpoint 6754 | -8/Garrison | Phase Generator disabled 6921 | -8/Garrison | Learned Materials security intel 6952 | -8/Garrison | Triggered checkpoint 7003 | -8/Garrison | Lost 3 parts (1p1u1w) 7007 | -8/Garrison | Garrison Relay disabled 7032 | -8/Garrison | Entered Materials 7506 | -8/Materials | Discovered exit to Storage (range 4) 7616 | -8/Materials | Discovered exit to Factory (range 5) 7857 | -8/Materials | Discovered exit to Factory (range 5) 8102 | -8/Materials | Lost 3 parts (2n1w) 8437 | -8/Materials | Discovered exit to Factory (range 15) 8737 | -8/Materials | Build established: Scavenger-Tank 9279 | -8/Materials | Garrison activated, responded to threat 9460 | -8/Materials | Repaired Arm. Wheel 9617 | -8/Materials | Garrison activated, responded to threat 9832 | -8/Materials | First assault squad dispatched 9860 | -8/Materials | Build established: Tank 9922 | -8/Materials | Garrison activated, responded to threat 9998 | -8/Materials | Identified exit to Garrison 10002 | -8/Materials | Entered Garrison 10096 | -8/Garrison | Triggered checkpoint 10134 | -8/Garrison | Learned Factory security intel 10142 | -8/Garrison | Garrison Relay disabled 10228 | -8/Garrison | Triggered checkpoint 10295 | -8/Garrison | Triggered checkpoint 10321 | -8/Garrison | Core integrity fell below 50% 10354 | -8/Garrison | Triggered checkpoint 10379 | -8/Garrison | Destroyed 10 combat bots 10495 | -8/Garrison | Triggered checkpoint 10625 | -8/Garrison | Triggered checkpoint 10707 | -8/Garrison | Build established: Gunner 10730 | -8/Garrison | Garrison Relay disabled 10801 | -8/Garrison | Discovered exit to Factory (range 15) 10951 | -8/Garrison | Triggered checkpoint 11017 | -8/Garrison | Triggered checkpoint 11063 | -8/Garrison | Garrison Relay disabled 11394 | -8/Garrison | Spotted B-75 Beast 11414 | -8/Garrison | Destroyed B-75 Beast 11486 | -8/Garrison | Phase Generator disabled 11658 | -8/Garrison | Triggered checkpoint 11672 | -8/Garrison | Garrison Relay disabled 11746 | -8/Garrison | Triggered checkpoint 11904 | -8/Garrison | Entered Factory 11904 | -7/Factory | Evolved 2 slots: Propulsion x1, Weapon x1 12297 | -7/Factory | Build established: Scavenger-Gunner 12304 | -7/Factory | First assault squad dispatched 12379 | -7/Factory | Sucked down chute 12379 | -7/Factory | Entered Waste 12379 | -7/Waste | Met up with 1 ally sucked down the chute earlier 12389 | -7/Waste | Spotted C-40 Crusher 12389 | -7/Waste | Spotted C-40 Crusher 12394 | -7/Waste | 1 allies followed down the chute 12394 | -7/Waste | EMP discharged 12395 | -7/Waste | Destroyed C-40 Crusher 12397 | -7/Waste | Spotted C-40 Crusher 12407 | -7/Waste | Allies destroyed C-40 Crusher 12422 | -7/Waste | Spotted C-40 Crusher 12446 | -7/Waste | Spotted C-40 Crusher 12448 | -7/Waste | Destroyed C-40 Crusher 12457 | -7/Waste | Spotted C-40 Crusher 12461 | -7/Waste | Allies destroyed C-40 Crusher 12494 | -7/Waste | EMP discharged 12494 | -7/Waste | System corruption reached 10% 12500 | -7/Waste | Destroyed C-40 Crusher 12509 | -7/Waste | Destroyed C-40 Crusher 12566 | -7/Waste | Discovered new exit (range 10) 12577 | -7/Waste | Entered Factory 12577 | -7/Factory | Accompanied by 2 allies 12585 | -7/Factory | Identified exit to Garrison 12668 | -7/Factory | Garrison activated, responded to threat 12672 | -7/Factory | Entered Garrison 12672 | -7/Garrison | Accompanied by 2 allies 12705 | -7/Garrison | Triggered checkpoint 12724 | -7/Garrison | Garrison Relay disabled 12979 | -7/Garrison | Lost 3 parts (2n1w) 13020 | -7/Garrison | Triggered checkpoint 13047 | -7/Garrison | Triggered checkpoint 13127 | -7/Garrison | Triggered checkpoint 13282 | -7/Garrison | Triggered checkpoint 13302 | -7/Garrison | Garrison Relay disabled 13398 | -7/Garrison | Destroyed 8 combat bots 13422 | -7/Garrison | Discovered new exit (range 13) 13526 | -7/Garrison | Destroyed 7 combat bots 13535 | -7/Garrison | Triggered checkpoint 13562 | -7/Garrison | Garrison Relay disabled 13882 | -7/Garrison | Triggered checkpoint 13888 | -7/Garrison | Garrison Relay disabled 13954 | -7/Garrison | Triggered checkpoint 13975 | -7/Garrison | Discovered new exit (range 15) 14270 | -7/Garrison | Triggered checkpoint 14300 | -7/Garrison | Garrison Relay disabled 14327 | -7/Garrison | Phase Generator disabled 14366 | -7/Garrison | Discovered new exit (range 11) 14389 | -7/Garrison | Garrison Relay disabled 14636 | -7/Garrison | Entered Factory 14636 | -7/Factory | Accompanied by 4 allies 14651 | -7/Factory | Identified exit to Garrison 14654 | -7/Factory | Entered Garrison 14654 | -7/Garrison | Accompanied by 4 allies 14700 | -7/Garrison | Triggered checkpoint 14729 | -7/Garrison | Garrison Relay disabled 15137 | -7/Garrison | Lost 4 allies 15164 | -7/Garrison | Triggered checkpoint 15228 | -7/Garrison | Discovered new exit (range 13) 15240 | -7/Garrison | Identified exit to Factory 15344 | -7/Garrison | Garrison Relay disabled 15531 | -7/Garrison | Heavy support dispatched to Factory 15588 | -7/Garrison | Heavy support dispatched to Factory 15596 | -7/Garrison | Triggered checkpoint 15612 | -7/Garrison | Garrison Relay disabled 15736 | -7/Garrison | H-XX Assembler disabled 15908 | -7/Garrison | Triggered checkpoint 16007 | -7/Garrison | Rescued a captive Derelict 16008 | -7/Garrison | Rescued a captive Derelict 16020 | -7/Garrison | Phase Generator disabled 16047 | -7/Garrison | Build established: Hauler-Gunner 16255 | -7/Garrison | Entered Factory 16255 | -7/Factory | Accompanied by 1 ally 16273 | -7/Factory | Garrison activated, responded to threat 16299 | -7/Factory | Discovered new exit (range 14) 16500 | -7/Factory | Identified exit to Garrison 16506 | -7/Factory | Entered Garrison 16506 | -7/Garrison | Accompanied by 1 ally 16538 | -7/Garrison | Triggered checkpoint 16581 | -7/Garrison | Garrison Relay disabled 16769 | -7/Garrison | Core integrity fell below 50% 16863 | -7/Garrison | Triggered checkpoint 16873 | -7/Garrison | Destroyed 7 combat bots 16944 | -7/Garrison | Lost 13 parts (2p3n1u7w) 16964 | -7/Garrison | Triggered checkpoint 17114 | -7/Garrison | Triggered checkpoint 17119 | -7/Garrison | Discovered new exit (range 11) 17130 | -7/Garrison | Garrison Relay disabled 17240 | -7/Garrison | Build established: Scavenger-Gunner 17281 | -7/Garrison | Found embedded Infiltrators 17371 | -7/Garrison | Phase Generator disabled 17779 | -7/Garrison | Garrison Relay disabled 17784 | -7/Garrison | Discovered new exit (range 8) 17816 | -7/Garrison | Identified exit to Factory 17933 | -7/Garrison | Garrison Relay disabled 18083 | -7/Garrison | Rescued a captive Derelict 18085 | -7/Garrison | Rescued a captive Derelict 18187 | -7/Garrison | Triggered checkpoint 18209 | -7/Garrison | Garrison Relay disabled 18301 | -7/Garrison | Entered Factory 18301 | -6/Factory | Accompanied by 2 allies 18301 | -6/Factory | Evolved 2 slots: Utility x2 18809 | -6/Factory | Sucked down chute 18809 | -6/Factory | Entered Waste 18809 | -6/Waste | Met up with 1 ally sucked down the chute earlier 18810 | -6/Waste | Met a frightened Derelict 18821 | -6/Waste | Found Adv. Powered Armor 18824 | -6/Waste | EMP discharged 18838 | -6/Waste | Spotted C-40 Crusher 18846 | -6/Waste | Destroyed C-40 Crusher 18857 | -6/Waste | Spotted C-40 Crusher 18863 | -6/Waste | Destroyed C-40 Crusher 18877 | -6/Waste | Spotted C-40 Crusher 18879 | -6/Waste | Destroyed C-40 Crusher 18891 | -6/Waste | Spotted C-40 Crusher 18899 | -6/Waste | Destroyed C-40 Crusher 18912 | -6/Waste | Discovered new exit (range 16) 18924 | -6/Waste | EMP discharged 18924 | -6/Waste | System corruption reached 10% 18935 | -6/Waste | Entered Factory 18935 | -6/Factory | Accompanied by 2 allies 18997 | -6/Factory | Identified exit to Lower Caves 18997 | -6/Factory | Identified exit to Extension 19147 | -6/Factory | Identified exit to Garrison 19154 | -6/Factory | Entered Garrison 19154 | -6/Garrison | Accompanied by 2 allies 19252 | -6/Garrison | Build established: Hauler-Gunner 19268 | -6/Garrison | Triggered checkpoint 19295 | -6/Garrison | Garrison Relay disabled 19316 | -6/Garrison | Triggered checkpoint 19382 | -6/Garrison | Triggered checkpoint 19394 | -6/Garrison | Triggered checkpoint 19477 | -6/Garrison | Triggered checkpoint 19507 | -6/Garrison | Triggered checkpoint 19552 | -6/Garrison | Destroyed 11 combat bots 19552 | -6/Garrison | Lost 3 parts (1p2n) 19797 | -6/Garrison | Discovered new exit (range 11) 19798 | -6/Garrison | Triggered checkpoint 19834 | -6/Garrison | Garrison Relay disabled 19906 | -6/Garrison | Spotted B-86 Titan 19982 | -6/Garrison | Identified exit to Factory 20030 | -6/Garrison | Triggered checkpoint 20096 | -6/Garrison | Garrison Relay disabled 20239 | -6/Garrison | Phase Generator disabled 20425 | -6/Garrison | Triggered checkpoint 20567 | -6/Garrison | Found Imp. Powered Armor 20570 | -6/Garrison | Found Imp. Powered Armor 20574 | -6/Garrison | Found Imp. Powered Armor 20577 | -6/Garrison | Found Imp. Powered Armor 20580 | -6/Garrison | Found Imp. Powered Armor 20582 | -6/Garrison | Found Imp. Powered Armor 20585 | -6/Garrison | Found Imp. Powered Armor 20689 | -6/Garrison | Triggered checkpoint 20702 | -6/Garrison | Garrison Relay disabled 21067 | -6/Garrison | Entered Factory 21067 | -6/Factory | Accompanied by 2 allies 21162 | -6/Factory | Garrison activated, responded to threat 21253 | -6/Factory | Identified exit to Garrison 21253 | -6/Factory | Entered Garrison 21253 | -6/Garrison | Accompanied by 2 allies 21379 | -6/Garrison | Triggered checkpoint 21417 | -6/Garrison | Garrison Relay disabled 21469 | -6/Garrison | Triggered checkpoint 21476 | -6/Garrison | P-60 Hacker assimilated allied EC-6GT(g) 21586 | -6/Garrison | Triggered checkpoint 21939 | -6/Garrison | Triggered checkpoint 21961 | -6/Garrison | Triggered checkpoint 21994 | -6/Garrison | Destroyed 8 combat bots 22085 | -6/Garrison | Triggered checkpoint 22225 | -6/Garrison | Garrison Relay disabled 22257 | -6/Garrison | Discovered new exit (range 10) 22447 | -6/Garrison | Triggered checkpoint 22501 | -6/Garrison | Garrison Relay disabled 22612 | -6/Garrison | Garrison Relay disabled 22628 | -6/Garrison | Discovered new exit (range 3) 22819 | -6/Garrison | Triggered checkpoint 22836 | -6/Garrison | Garrison Relay disabled 22952 | -6/Garrison | Found embedded Infiltrators 23073 | -6/Garrison | Discovered new exit (range 14) 23240 | -6/Garrison | Found Adv. Powered Armor 23455 | -6/Garrison | Attempted to access garrison exit controls, blocked by remote lockdown 23719 | -6/Garrison | Entered Factory 23719 | -5/Factory | Accompanied by 4 allies 23719 | -5/Factory | Evolved 2 slots: Utility x2 24019 | -5/Factory | First assault squad dispatched 24259 | -5/Factory | Sucked down chute 24259 | -5/Factory | Entered Waste 24274 | -5/Waste | EMP discharged 24275 | -5/Waste | Spotted C-40 Crusher 24282 | -5/Waste | Destroyed C-40 Crusher 24304 | -5/Waste | 3 allies followed down the chute 24306 | -5/Waste | Spotted C-40 Crusher 24309 | -5/Waste | Spotted C-40 Crusher 24317 | -5/Waste | Spotted C-40 Crusher 24320 | -5/Waste | Destroyed C-40 Crusher 24329 | -5/Waste | Destroyed C-40 Crusher 24331 | -5/Waste | Spotted C-40 Crusher 24339 | -5/Waste | Destroyed C-40 Crusher 24343 | -5/Waste | Spotted C-40 Crusher 24347 | -5/Waste | Destroyed C-40 Crusher 24355 | -5/Waste | Destroyed C-40 Crusher 24374 | -5/Waste | EMP discharged 24374 | -5/Waste | System corruption reached 10% 24407 | -5/Waste | Discovered new exit (range 15) 24427 | -5/Waste | Entered Factory 24427 | -5/Factory | Accompanied by 1 ally 24744 | -5/Factory | Identified exit to Upper Caves 24863 | -5/Factory | Build established: Hauler-Tank 24953 | -5/Factory | Spotted B-75 Beast 24990 | -5/Factory | Destroyed B-75 Beast 25027 | -5/Factory | First assault squad dispatched 25170 | -5/Factory | Entered Upper Caves 25177 | -5/Upper Caves | Met a Warlord Commander 25178 | -5/Upper Caves | Learned location of Warlord (-5) 25179 | -5/Upper Caves | Warlord Commander delivered Encrypted Comm Array 25182 | -5/Upper Caves | Found Encrypted Comm Array 25261 | -5/Upper Caves | Found Alien Artifact 25471 | -5/Upper Caves | Build established: Scavenger-Gunner 25912 | -5/Upper Caves | Discovered new exit (range 9) 25957 | -5/Upper Caves | Learned Factory non-interactive machine intel 26066 | -5/Upper Caves | Entered another Upper Caves area 26113 | -5/Upper Caves | Discovered new exit (range 11) 26353 | -5/Upper Caves | Learned location of 1 exit from Factory 26620 | -5/Upper Caves | Attracted the attention of an 0b10 checkpoint 26901 | -5/Upper Caves | Discovered new exit (range 15) 26942 | -5/Upper Caves | Entered Warlord 26961 | -5/Warlord | Build established: Hauler-Gunner 26986 | -5/Warlord | System corruption cleaned by Quarantine Array 27606 | -5/Warlord | Met Warlord 27630 | -5/Warlord | Warlord's base attacked by MAIN.C 27668 | -5/Warlord | Found Prototype Energy Gun 27668 | -5/Warlord | Identified Vortex Rifle 27675 | -5/Warlord | Found Prototype Energy Cannon 27675 | -5/Warlord | Identified Vortex Cannon 27680 | -5/Warlord | Found Prototype Energy Cannon 27680 | -5/Warlord | Identified Vortex Driver 27687 | -5/Warlord | Found Vortex Driver 27691 | -5/Warlord | Found Vortex Cannon 27697 | -5/Warlord | Found Vortex Rifle 27843 | -5/Warlord | Found Prototype Device 27843 | -5/Warlord | Identified Exp. Phase Shifter 27851 | -5/Warlord | Found Prototype Device 27851 | -5/Warlord | Identified Exp. Focal Shield 27855 | -5/Warlord | Found Prototype Processor 27855 | -5/Warlord | Identified Exp. Target Analyzer 27868 | -5/Warlord | Found Prototype Hackware 27877 | -5/Warlord | Found Prototype Reactor 27980 | -5/Warlord | Warlord forces counterattacked 28018 | -5/Warlord | Spotted Striker 28031 | -5/Warlord | Spotted Striker 28087 | -5/Warlord | Lost 22 allies 28107 | -5/Warlord | Spotted Striker 28142 | -5/Warlord | Spotted Striker 28189 | -5/Warlord | Discovered new exit (range 15) 28218 | -5/Warlord | Lost 14 allies 28230 | -5/Warlord | Spotted Striker 28230 | -5/Warlord | Spotted Striker 28271 | -5/Warlord | Destroyed Striker 28284 | -5/Warlord | Lost 13 allies 28305 | -5/Warlord | Warlord base infiltrated, sounded retreat 28448 | -5/Warlord | Spotted Executioner 28511 | -5/Warlord | Crushed by falling debris 28530 | -5/Warlord | Spotted Executioner 28530 | -5/Warlord | Spotted Executioner 28530 | -5/Warlord | Spotted Striker 28561 | -5/Warlord | Found Corrupted Exp. Core Analyzer 28569 | -5/Warlord | Entered Proximity Caves 28569 | -4/Proximity Caves | Accompanied by 1 ally 28574 | -4/Proximity Caves | Lost 3 allies 28604 | -4/Proximity Caves | Attracted the attention of an 0b10 checkpoint 29295 | -4/Proximity Caves | Learned Research emergency access door positions 29393 | -4/Proximity Caves | Discovered new exit (range 13) 30023 | -4/Proximity Caves | Entered Factory 30023 | -4/Factory | Accompanied by 1 ally 30023 | -4/Factory | Evolved 2 slots: Power x1, Propulsion x1 30024 | -4/Factory | Identified exit to Research 30025 | -4/Factory | Loaded intel: 173 non-interactive machine locations 30251 | -4/Factory | Identified exit to DSF 30253 | -4/Factory | Entered DSF 30253 | -4/DSF | Accompanied by 1 ally 30272 | -4/DSF | Additional patrols routed to DSF 30317 | -4/DSF | Discovered new exit (range 16) 30348 | -4/DSF | Lost 5 parts (3n1u1w) 30373 | -4/DSF | Sterilization system engaged 30393 | -4/DSF | Ambient heat levels rising (+10) 30408 | -4/DSF | Ambient heat levels rising (+10) 30423 | -4/DSF | Ambient heat levels rising (+10) 30438 | -4/DSF | Ambient heat levels rising (+10) 30453 | -4/DSF | Ambient heat levels rising (+10) 30468 | -4/DSF | Ambient heat levels rising (+10) 30483 | -4/DSF | Ambient heat levels rising (+10) 30498 | -4/DSF | Ambient heat levels rising (+10) 30513 | -4/DSF | Ambient heat levels rising (+10) 30528 | -4/DSF | Ambient heat levels rising (+10) 30543 | -4/DSF | Ambient heat levels rising (+10) 30558 | -4/DSF | Ambient heat levels rising (+10) 30563 | -4/DSF | Entered Garrison 30615 | -4/Garrison | Garrison Relay disabled 30629 | -4/Garrison | Phase Generator disabled 30642 | -4/Garrison | Triggered checkpoint 30671 | -4/Garrison | Build established: Scavenger-Gunner 30713 | -4/Garrison | Destroyed 7 combat bots 30745 | -4/Garrison | Triggered checkpoint 30778 | -4/Garrison | Garrison Relay disabled 30871 | -4/Garrison | Spotted B-86 Titan 30882 | -4/Garrison | Triggered checkpoint 30902 | -4/Garrison | Destroyed B-86 Titan 30986 | -4/Garrison | Destroyed 9 combat bots 30986 | -4/Garrison | Lost 3 parts (3w) 30991 | -4/Garrison | Build established: Hauler-Gunner 31043 | -4/Garrison | Triggered checkpoint 31079 | -4/Garrison | Triggered checkpoint 31173 | -4/Garrison | Triggered checkpoint 31199 | -4/Garrison | Garrison Relay disabled 31238 | -4/Garrison | Identified Vortex Chain Reactor 31306 | -4/Garrison | Garrison Relay disabled 31404 | -4/Garrison | Discovered exit to Research (range 20) 31404 | -4/Garrison | Discovered exit to Research (range 64) 31404 | -4/Garrison | Discovered exit to Research (range 86) 31792 | -4/Garrison | Build established: Scavenger-Gunner 32009 | -4/Garrison | Triggered checkpoint 32141 | -4/Garrison | Found embedded Infiltrators 32282 | -4/Garrison | Lost 5 allies 32339 | -4/Garrison | Triggered checkpoint 32385 | -4/Garrison | Garrison Relay disabled 32707 | -4/Garrison | Entered Research 32707 | -3/Research | Accompanied by 5 allies 32707 | -3/Research | Evolved 2 slots: Propulsion x1, Utility x1 32708 | -3/Research | Identified exit to Armory 32957 | -3/Research | First assault squad dispatched 32964 | -3/Research | Identified exit to DSF 32966 | -3/Research | Entered DSF 32966 | -3/DSF | Accompanied by 5 allies 32996 | -3/DSF | Additional patrols routed to DSF 33096 | -3/DSF | Wild Derelicts raided the area 33137 | -3/DSF | Lost 5 allies 33246 | -3/DSF | Sterilization system engaged 33266 | -3/DSF | Ambient heat levels rising (+10) 33281 | -3/DSF | Ambient heat levels rising (+10) 33295 | -3/DSF | Discovered new exit (range 14) 33296 | -3/DSF | Ambient heat levels rising (+10) 33311 | -3/DSF | Ambient heat levels rising (+10) 33326 | -3/DSF | Ambient heat levels rising (+10) 33337 | -3/DSF | Entered Research 33337 | -2/Research | Warlord forces began assault on 0b10 33337 | -2/Research | Evolved 2 slots: Utility x2 33362 | -2/Research | Distinguished unit "The Professionals" dispatched to help 33362 | -2/Research | Distinguished unit "Knights of the Pentagonal Table" dispatched to help 33447 | -2/Research | Research machine network offline 33667 | -2/Research | Borebot progress halted 33834 | -2/Research | Spotted Striker 33843 | -2/Research | Destroyed Striker 33899 | -2/Research | Lost 8 allies 34009 | -2/Research | Discovered new exit (range 29) 34033 | -2/Research | Borebot progress halted 34048 | -2/Research | Identified exit to Access 34332 | -2/Research | Discovered new exit (range 9) 34341 | -2/Research | Identified exit to Testing 34449 | -2/Research | Discovered exit to Testing (range 47) 34450 | -2/Research | Found Prototype Processor 34450 | -2/Research | Identified Exp. Targeting Computer 34641 | -2/Research | Found Exp. Targeting Computer 34661 | -2/Research | Found Exp. Core Analyzer 34666 | -2/Research | Found Prototype Device 34666 | -2/Research | Identified Adv. Kinecellerator 34768 | -2/Research | Found Prototype Processor 34768 | -2/Research | Identified Exp. Melee Analysis Suite 34817 | -2/Research | Spotted Executioner 34841 | -2/Research | Given Cave Seal Controls access code 34879 | -2/Research | Lost 6 allies 34943 | -2/Research | Entered Testing 35066 | -2/Testing | Lost 6 allies 35083 | -2/Testing | Found Exp. Core Analyzer 35541 | -2/Testing | Found Prototype Energy Cannon 35541 | -2/Testing | Identified Potential Cannon 35587 | -2/Testing | Found Potential Cannon 35647 | -2/Testing | Discovered exit to Access (range 5) 35875 | -2/Testing | Build established: Gunner 36037 | -2/Testing | Found Quantum Capacitor 36099 | -2/Testing | Spotted Fortress 36175 | -2/Testing | Discovered new exit (range 7) 36175 | -2/Testing | Discovered new exit (range 6) 36180 | -2/Testing | Entered Protoforge 36235 | -2/Protoforge | Build established: Scavenger-Gunner 36254 | -2/Protoforge | Superfortress began startup sequence 36294 | -2/Protoforge | Discovered exit to Access (range 23) 36305 | -2/Protoforge | Identified Ghost Barrier 36430 | -2/Protoforge | System corruption reached 10% 36501 | -2/Protoforge | Spotted Overlord 36571 | -2/Protoforge | Destroyed Overlord 36641 | -2/Protoforge | Spotted B-90 Cyclops 36647 | -2/Protoforge | Spotted Hotshot 36657 | -2/Protoforge | Spotted Hotshot 36657 | -2/Protoforge | Spotted Hotshot 36663 | -2/Protoforge | Destroyed Hotshot 36680 | -2/Protoforge | Spotted Hotshot 36696 | -2/Protoforge | Destroyed Hotshot 36701 | -2/Protoforge | Destroyed Hotshot 36732 | -2/Protoforge | Spotted Hotshot 36773 | -2/Protoforge | Destroyed Hotshot 36810 | -2/Protoforge | Destroyed Hotshot 36920 | -2/Protoforge | Additional patrols dispatched to research labs 36980 | -2/Protoforge | Found Prototype Device 36981 | -2/Protoforge | Identified Crosscalibrator 36988 | -2/Protoforge | Found Prototype Device 36988 | -2/Protoforge | Identified Cep. Weapon Articulator 36997 | -2/Protoforge | Spotted Immortal 36997 | -2/Protoforge | Spotted Immortal 37008 | -2/Protoforge | Spotted Decapitator 37008 | -2/Protoforge | Spotted Decapitator 37008 | -2/Protoforge | Spotted Decapitator 37008 | -2/Protoforge | Spotted Decapitator 37032 | -2/Protoforge | Destroyed Immortal 37093 | -2/Protoforge | Destroyed Immortal 37121 | -2/Protoforge | Found Cep. Tiamat Rocket Array 37205 | -2/Protoforge | Destroyed Decapitator 37231 | -2/Protoforge | Spotted Decapitator 37231 | -2/Protoforge | Spotted Decapitator 37232 | -2/Protoforge | Destroyed Decapitator 37232 | -2/Protoforge | Destroyed Decapitator 37241 | -2/Protoforge | Spotted Decapitator 37241 | -2/Protoforge | Spotted Decapitator 37242 | -2/Protoforge | Destroyed Decapitator 37242 | -2/Protoforge | Destroyed Decapitator 37245 | -2/Protoforge | Destroyed Decapitator 37254 | -2/Protoforge | Destroyed Decapitator 37276 | -2/Protoforge | Lost 4 parts (2n2u) 37347 | -2/Protoforge | Found Exp. Kinecellerator 37349 | -2/Protoforge | Found Cep. Countertargeting System 37353 | -2/Protoforge | Found Cep. Networked Targeting System 37365 | -2/Protoforge | Found Cep. Hypertargeting System 37398 | -2/Protoforge | Found Prototype Launcher 37402 | -2/Protoforge | Found Prototype Launcher 37452 | -2/Protoforge | Spotted Hotshot 37452 | -2/Protoforge | Spotted Hotshot 37452 | -2/Protoforge | Spotted Hotshot 37473 | -2/Protoforge | Destroyed Hotshot 37477 | -2/Protoforge | Destroyed Hotshot 37481 | -2/Protoforge | Spotted Hotshot 37492 | -2/Protoforge | Destroyed Hotshot 37507 | -2/Protoforge | Destroyed Hotshot 37536 | -2/Protoforge | Found Cep. RG22 Armor 37545 | -2/Protoforge | Found Faulty Cep. RG22 Armor 37549 | -2/Protoforge | Spotted V491-r 37550 | -2/Protoforge | Spotted V092-t 37550 | -2/Protoforge | Spotted V663-m 37550 | -2/Protoforge | Spotted V192-w 37557 | -2/Protoforge | Identified Cep. Concussive Dispersal Blaster (x2) 37575 | -2/Protoforge | Destroyed V663-m 37583 | -2/Protoforge | Destroyed V192-w 37602 | -2/Protoforge | Destroyed V491-r 37635 | -2/Protoforge | Lost 10 parts (1p2n3u4w) 37638 | -2/Protoforge | Destroyed 9 combat bots 37698 | -2/Protoforge | Found Prototype Protection 37698 | -2/Protoforge | Identified Cep. Core Shell 37705 | -2/Protoforge | Found Cep. Phase Shift Module 37710 | -2/Protoforge | Found Exp. Remote Shield 37712 | -2/Protoforge | Found Cep. Core Shell 37715 | -2/Protoforge | Found Cep. Projectile Intercept Suite 37718 | -2/Protoforge | Found Cep. Projectile Intercept Suite 37759 | -2/Protoforge | System corruption reached 30% 37839 | -2/Protoforge | Lost 12 parts (1p3n4u4w) 37885 | -2/Protoforge | Spotted Decapitator 37885 | -2/Protoforge | Spotted Decapitator 37906 | -2/Protoforge | Spotted Decapitator 37936 | -2/Protoforge | Found Cep. NT7 Matterbank 37938 | -2/Protoforge | Found Cep. Chromion Battery 37940 | -2/Protoforge | Found Cep. NT7 Matterbank 37942 | -2/Protoforge | Found Cep. Matter Streamer 37944 | -2/Protoforge | Found Cep. Antigrav Storage Unit 37950 | -2/Protoforge | Found Cep. Matter Streamer 37977 | -2/Protoforge | Found Cep. Chromion Battery 37979 | -2/Protoforge | Found Cep. Chromion Battery 37983 | -2/Protoforge | Found Cep. Antigrav Storage Unit 38102 | -2/Protoforge | Lost 3 parts (2n1u) 38187 | -2/Protoforge | Spotted V305-e 38187 | -2/Protoforge | Spotted V929-j 38210 | -2/Protoforge | Spotted V373-y 38270 | -2/Protoforge | Spotted Decapitator 38274 | -2/Protoforge | Destroyed Decapitator 38274 | -2/Protoforge | Destroyed Decapitator 38313 | -2/Protoforge | Found Prototype Ballistic Cannon 38313 | -2/Protoforge | Identified Cep. Helical Railcannon 38318 | -2/Protoforge | Found Cep. Helical Railcannon 38329 | -2/Protoforge | Found Prototype Energy Cannon 38329 | -2/Protoforge | Identified Cep. Plasma Driver 38335 | -2/Protoforge | Found Faulty Cep. Heavy Railcannon 38343 | -2/Protoforge | Found Cep. Heavy Railcannon 38346 | -2/Protoforge | Found Cep. XC Strikerail 38382 | -2/Protoforge | Spotted V310-b 38413 | -2/Protoforge | Destroyed V310-b 38423 | -2/Protoforge | Found Exp. Terror Saw 38426 | -2/Protoforge | Found Faulty Cep. Plasma Driver 38430 | -2/Protoforge | First assault squad dispatched 38482 | -2/Protoforge | Found Faulty Cep. Plasma Driver 38508 | -2/Protoforge | Found Prototype Ballistic Cannon 38508 | -2/Protoforge | Identified Cep. Miniperforator 38524 | -2/Protoforge | Found Faulty Cep. Miniperforator 38602 | -2/Protoforge | Spotted V940-y 38602 | -2/Protoforge | Spotted V256-r 38602 | -2/Protoforge | Spotted Immortal 38608 | -2/Protoforge | Spotted Immortal 38608 | -2/Protoforge | Spotted Immortal 38609 | -2/Protoforge | Spotted Immortal 38610 | -2/Protoforge | Spotted Immortal 38636 | -2/Protoforge | Core integrity fell below 50% 38646 | -2/Protoforge | Destroyed Immortal 38663 | -2/Protoforge | Core integrity fell below 20% 38672 | -2/Protoforge | Destroyed V940-y 38673 | -2/Protoforge | Destroyed by Immortal with Experimental Jetlance Last Messages --------------- 38666_ Cep. RG22 Armor temporarily disabled. 38668_ Penetrated by Slug. 38668_ Slug penetrates Reinforced Barrier. 38668_ Penetrated by Slug. 38668_ Slug penetrates Reinforced Barrier. 38668_ Plasma Slug penetrates Machine. 38668_ Plasma Slug penetrates Reinforced Barrier. 38669_ Cep. Plasma Driver destroyed. 38669_ Exp. Kinecellerator destroyed. 38672_ System corrupted: Matter fused (-10). 38672_ Cep. RG22 Armor destroyed. 38672_ Penetrated by Slug. 38672_ Slug penetrates Reinforced Barrier. 38672_ Penetrated by Slug. 38672_ Plasma Slug penetrates V940-y. 38672_ V940-y suffers critical hit (Meltdown). 38672_ Prototype Ballistic Gun melted. 38672_ Prototype Device melted. 38672_ Plasma Slug penetrates Door. 38673_ Cep. Plasma Driver destroyed. Map ----- +----------------------------------------------------+ | ?????????????????????????????????????????????????? | | ?????????????????????????????????????????????????? | | ?????????????????????????????????????????????????? | | ?????????????????????????????????????????????????? | | ?????????????????????????????????????????????????? | | ?????????????????????????????????????????????????? | | ?????????????????????????????????????????????????? | | ?????????????????????????????????????????????????? | | ?????????????????????????????????????????????????? | | ?????????????????????????????????????????????????? | | ?????????????????????????????????????????????????? | | ?????????????????????????????????????????????????? | | ?????????????????????????????????????????????????? | | ?????????????????????????????????????????????????? | | ?????????????????????????????????????????????????? | | ?????????#####???????????????????????????????????? | | ????????? #??????????????????????????????????? | | ?????????? ??????????????????????????????????? | | ?????????? ??????????????????????????????????? | | ??????????# #??????????????????????????????????? | | ??????????# #??????????????????????????????????? | | ??????????# #?????????????????????????? ???????? | | ??????????# #??????????????????????? ??????? | | ??????????# #???????????????????? ??????? | | ??????????# ################### "??????? | | ??????????# @l%%* "???????? | | ??????????# !! l%% l ""???????? | | ??????????# #########+;=#;##### "??????? | | ??????????# #??????" =% ??????? ????????? | | ??????????# #?????# ??????????????????? | | ??????????# #????#"" ?????????????????? | | ??????????# #???# #" "" ""# "????????????????? | | ??????????# #???###;;##;###? ##???????????????? | | ??????????# #?????#;#?#;#????##????????????????? | | ??????????# #?????# ??? ???????????????????????? | | ####??????# #?????##???#???????????????????????? | | """#??????# #??????????????????????????????????? | | "#??????# #??????????????????????????????????? | | "#??????# #??????????????????????????????????? | | "###??????# #????????????????##############????? | | "#???????# #????????????????# ! /[## [/]/#????? | | ""#???????# #????????????????#[] []##/[/[/#????? | | ""#???????# #????????????????###!!"## ""###????? | | ""#???????# #??????????????### == "#????? | | ""#???????# #??????????????# # ""#????? | | "#???????# ################ # """"#????? | | "#???????# = ] """"#????? | | ##???????# ! ! [ ""#????? | | ""????????# ########### = # ! "#????? | | ""#???????# #?????????#"" " #"" "#????? | +----------------------------------------------------+ Best States ------------- Heat Dissipation 136 Coolant Potential 80 Energy Generation 55 Energy Capacity 1390 Matter Stores 300 Matter Capacity 300 Sight Range 23 Robot Scan Range 16 Terrain Scan Density 10 Jamming Range 16 Armor Coverage 400 Resistance: EM 25 Core Shielding 90 Weapon Shielding 90 Point Defense Rating 80 Weapon Cycling 25 Evasion (%) 44 Targeting Accuracy 42 Target Analysis 10 Core Analysis 8 Recoil Reduction 4 Matter Filtering 30 Kinecelleration 66 Offensive Hacking 10 Defensive Hacking 20 Item Schematics ----------------- Assault Rifle | -8/Materials | Hacked Com. Wheel | -8/Materials | Scanalyzed Lgt. Ion Engine | -8/Materials | Scanalyzed Hcp. Matter Pod | -8/Materials | Scanalyzed Arm. Wheel | -8/Materials | Scanalyzed Enh. Autogun | -8/Materials | Scanalyzed Machine Analyzer | -8/Materials | Hacked Arm. Huge Wheel | -7/Factory | Hacked Robot Schematics ------------------ M-13 Machinist | -10/Materials | Hacked Fabricated ------------ Nothing Repaired ---------- Imp. EM Shotgun | 32% | -10/Materials Imp. EM Shotgun | 68% | -10/Materials Arm. Wheel | 9% | -8/Materials Alien Tech Used ----------------- None Achievements -------------- None Challenges ------------ None Game ------ Seed SpectralOmegaReplicator Manual? 0 Play Time 07:24:02 Cumulative 1275.1 hours Start 2025.08.18 @ 20:33:38 End 2025.08.22 @ 01:57:35 Sessions 9 Manual Loads 0 Difficulty Rogue Special Mode None Game No. 602 Rogue 602 Adventurer 0 Explorer 0 Win Type - Total 23 Types 10/4/3/0/1/1/2/2/0/0 Lore% 92 Gallery% 90 Achievement% 84 Wizard Run 0 Options --------- Layout 0 ASCII 0 Keyboard 0 Movement Numpad Keybinds 0 Fullscreen 2 Font 24/Smallcaps Map View 76x50 Zoom Use 0% Tactical HUD 1 Map Filters NONE Filters SHIFT_HUE(315) Steam 1 RUN: 6e609148-dab8-4a3f-a4f4-06277bdc9df1